{"text_format":"1","workbook":"xlsx","n_sheets":2,"sheets":["Для розрахунків","ГОТОВИЙ ЗВІТ"],"not_rendered":{"charts":0,"images":0,"macros":0,"external_links":0,"defined_names":2,"comments":0,"pivot_tables":0},"unopened":[],"bounds":{"document_bytes":16777216,"sheet_cells":100000,"rows_first":2000,"rows_last":500,"rows_between":2000,"halvings":0,"cell_chars":16384,"cell_head_chars":4096},"cells_cut":0,"cells_raw":0,"read":"whole","date_system":"1900"}

{"sheet":"Для розрахунків","index":0,"n_rows":142,"n_cols":74,"rows_kept":142,"cut":false,"hidden":false,"merged":[[19,50,19,58],[112,0,112,45],[113,0,113,45],[105,0,105,45],[102,0,102,45],[106,0,106,45],[104,0,104,45],[111,0,111,45],[110,0,110,45],[109,0,109,45],[5,0,5,59],[5,60,5,62],[59,59,59,67],[56,59,56,67],[49,0,49,45],[50,0,50,45],[55,50,55,58],[49,50,49,58],[51,50,51,58],[50,50,50,58],[4,60,4,68],[6,60,6,68],[7,60,7,68],[8,60,8,68],[5,66,5,68],[5,63,5,65],[6,0,6,8],[7,0,7,6],[6,9,6,50],[7,7,7,50],[62,59,62,67],[60,59,60,67],[49,46,49,49],[51,46,51,49],[19,59,19,67],[22,50,22,58],[6,51,6,59],[7,51,7,59],[61,59,61,67],[65,59,65,67],[45,50,45,58],[28,50,28,58],[26,50,26,58],[39,50,39,58],[14,0,14,53],[24,59,24,67],[8,0,8,26],[10,0,10,17],[9,16,9,50],[10,18,10,61],[9,51,9,59],[8,51,8,59],[8,27,8,50],[9,60,9,68],[42,0,42,45],[42,46,42,49],[40,50,40,58],[39,59,39,67],[40,59,40,67],[27,59,27,67],[28,59,28,67],[11,0,11,9],[13,0,13,61],[11,10,11,61],[15,0,15,53],[22,59,22,67],[9,0,9,15],[18,27,18,37],[19,42,19,49],[18,25,18,26],[21,0,21,45],[31,0,31,45],[31,46,31,49],[27,0,27,45],[32,46,32,49],[14,60,14,68],[15,60,15,68],[26,0,26,45],[23,46,24,49],[23,0,23,45],[22,0,22,45],[17,0,17,68],[24,50,24,58],[45,46,45,49],[12,0,12,68],[18,38,18,39],[45,59,45,67],[29,50,29,58],[30,59,30,67],[35,46,35,49],[37,0,37,45],[26,46,26,49],[45,0,45,45],[33,0,33,45],[38,0,38,45],[35,0,35,45],[43,0,43,45],[40,0,40,45],[36,0,36,45],[39,0,39,45],[34,0,34,45],[44,0,44,45],[18,40,18,41],[18,42,18,45],[21,46,21,49],[22,46,22,49],[25,46,25,49],[28,46,28,49],[41,46,41,49],[30,0,30,45],[41,0,41,45],[60,50,60,58],[64,50,64,58],[65,50,65,58],[53,46,53,49],[63,50,63,58],[64,46,64,49],[63,46,63,49],[55,46,55,49],[25,50,25,58],[34,46,34,49],[40,46,40,49],[39,46,39,49],[35,50,35,58],[34,50,34,58],[33,46,33,49],[36,46,36,49],[31,50,31,58],[37,46,38,49],[68,59,68,67],[67,59,67,67],[63,59,63,67],[64,59,64,67],[135,59,135,67],[119,59,119,67],[120,59,120,67],[121,59,121,67],[122,59,122,67],[127,59,127,67],[74,59,74,67],[69,59,69,67],[70,50,70,58],[74,50,74,58],[71,59,71,67],[70,59,70,67],[72,59,72,67],[72,50,72,58],[71,50,71,58],[76,50,76,58],[91,57,91,58],[66,50,66,58],[67,50,67,58],[89,59,89,67],[92,59,92,60],[94,59,94,67],[134,59,134,67],[126,59,126,67],[128,59,128,67],[129,59,129,67],[131,59,131,67],[91,61,91,65],[96,59,96,67],[103,59,103,67],[106,59,106,67],[112,59,112,67],[125,59,125,67],[124,59,124,67],[108,59,108,67],[132,59,133,67],[123,59,123,67],[91,59,91,60],[93,59,93,67],[130,59,130,67],[115,59,115,67],[109,59,109,67],[111,59,111,67],[107,59,107,67],[105,59,105,67],[85,59,85,67],[75,50,75,58],[86,46,86,49],[84,46,84,49],[86,0,86,45],[81,0,81,45],[83,0,83,45],[77,46,77,49],[76,59,76,67],[79,50,80,58],[77,50,77,58],[85,46,85,49],[82,46,83,49],[83,50,83,58],[81,46,81,49],[82,0,82,45],[75,0,75,45],[74,0,74,45],[68,0,68,45],[71,0,71,45],[73,0,73,45],[79,46,80,49],[70,46,70,49],[64,0,64,45],[75,59,75,67],[73,59,73,67],[73,50,73,58],[69,46,69,49],[72,46,72,49],[72,0,72,45],[66,0,66,45],[66,46,66,49],[52,46,52,49],[46,46,46,49],[50,46,50,49],[43,46,43,49],[44,46,44,49],[47,46,48,49],[87,46,87,49],[75,46,75,49],[59,46,59,49],[60,46,60,49],[67,46,67,49],[68,46,68,49],[74,46,74,49],[76,46,76,49],[73,46,73,49],[71,46,71,49],[46,0,46,45],[55,0,55,45],[47,0,47,45],[70,0,70,45],[69,0,69,45],[53,0,53,45],[59,0,59,45],[58,0,58,45],[60,0,60,45],[61,0,61,45],[132,50,133,58],[135,0,135,45],[135,50,135,58],[135,46,135,49],[132,0,132,45],[134,0,134,45],[133,0,133,45],[96,0,96,45],[89,0,89,45],[76,0,76,45],[95,0,95,45],[85,0,85,45],[88,0,88,45],[92,0,92,45],[87,0,87,45],[77,0,77,45],[101,0,101,45],[127,0,127,45],[126,0,126,45],[128,46,128,49],[128,0,128,45],[98,0,98,45],[108,0,108,45],[67,0,67,45],[134,50,134,58],[56,0,56,45],[56,46,56,49],[57,46,58,49],[107,0,107,45],[100,0,100,45],[94,0,94,45],[63,0,63,45],[97,46,97,49],[130,0,130,45],[131,0,131,45],[134,46,134,49],[131,50,131,58],[130,50,130,58],[88,46,88,49],[98,46,98,49],[129,0,129,45],[103,0,103,45],[97,0,97,45],[127,50,127,58],[130,46,130,49],[131,46,131,49],[27,46,27,49],[29,46,29,49],[30,46,30,49],[65,46,65,49],[36,50,36,58],[42,50,42,58],[96,50,96,58],[141,0,141,43],[132,46,133,49],[137,15,137,29],[137,33,137,45],[139,0,139,14],[139,15,139,29],[139,33,139,45],[57,0,57,45],[106,46,106,49],[28,0,28,45],[137,0,137,14],[129,46,129,49],[62,46,62,49],[61,46,61,49],[62,0,62,45],[65,0,65,45],[79,0,80,45],[48,0,48,45],[32,0,32,45],[0,73,12,76],[38,50,38,58],[38,59,38,67],[21,50,21,58],[21,59,21,67],[25,59,25,67],[0,39,0,67],[32,50,32,58],[35,59,35,67],[29,59,29,67],[27,50,27,58],[34,59,34,67],[30,50,30,58],[31,59,31,67],[41,59,41,67],[1,39,1,67],[2,39,2,67],[33,59,33,67],[32,59,32,67],[33,50,33,58],[24,0,24,45],[25,0,25,45],[29,0,29,45],[26,59,26,67],[53,50,53,58],[36,59,36,67],[52,50,52,58],[48,50,48,58],[41,50,41,58],[46,50,46,58],[46,59,46,67],[48,59,48,67],[44,59,44,67],[44,50,44,58],[84,50,84,58],[43,59,43,67],[42,59,42,67],[43,50,43,58],[61,50,61,58],[49,59,49,67],[52,59,52,67],[51,59,51,67],[55,59,55,67],[54,50,54,58],[83,59,83,67],[81,59,81,67],[92,50,92,51],[89,50,89,58],[85,50,85,58],[56,50,56,58],[92,52,92,56],[92,57,92,58],[68,50,68,58],[69,50,69,58],[107,46,107,49],[66,59,66,67],[81,50,81,58],[86,50,86,58],[103,50,103,58],[101,50,101,58],[84,59,84,67],[87,59,87,67],[88,59,88,67],[86,59,86,67],[88,50,88,58],[89,46,89,49],[90,0,90,45],[91,0,91,45],[50,59,50,67],[53,59,53,67],[58,59,58,67],[54,59,54,67],[79,59,80,67],[77,59,77,67],[54,0,54,45],[51,0,51,45],[54,46,54,49],[52,0,52,45],[99,0,99,45],[87,50,87,58],[62,50,62,58],[58,50,58,58],[59,50,59,58],[84,0,84,45],[105,50,105,58],[90,46,90,49],[91,46,91,49],[93,46,93,49],[101,46,101,49],[94,50,94,58],[93,50,93,58],[90,51,90,57],[91,50,91,51],[106,50,106,58],[101,59,101,67],[95,46,96,49],[99,46,99,49],[104,59,104,67],[104,50,104,58],[104,46,104,49],[99,59,99,67],[105,46,105,49],[103,46,103,49],[93,0,93,45],[99,50,99,58],[98,59,98,67],[91,66,91,67],[92,66,92,67],[92,61,92,65],[97,59,97,67],[91,52,91,56],[97,50,97,58],[98,50,98,58],[107,50,107,58],[112,50,112,58],[114,50,114,58],[108,46,108,49],[111,46,111,49],[110,50,110,58],[111,50,111,58],[110,46,110,49],[112,46,112,49],[108,50,108,58],[90,60,90,66],[94,46,94,49],[92,46,92,49],[102,50,102,58],[100,46,100,49],[100,59,100,67],[102,59,102,67],[100,50,100,58],[102,46,102,49],[109,50,109,58],[123,50,123,58],[114,59,114,67],[117,59,117,67],[118,59,118,67],[121,50,121,58],[115,50,115,58],[119,50,119,58],[120,50,120,58],[118,50,118,58],[117,50,117,58],[110,59,110,67],[129,50,129,58],[109,46,109,49],[122,50,122,58],[127,46,127,49],[124,50,124,58],[126,50,126,58],[121,46,121,49],[125,50,125,58],[113,46,114,49],[118,46,118,49],[119,46,119,49],[117,46,117,49],[128,50,128,58],[122,46,122,49],[120,46,120,49],[116,46,116,49],[125,46,125,49],[126,46,126,49],[124,46,124,49],[123,0,123,45],[115,46,115,49],[121,0,121,45],[117,0,117,45],[116,0,116,45],[123,46,123,49],[115,0,115,45],[125,0,125,45],[118,0,118,45],[120,0,120,45],[122,0,122,45],[124,0,124,45],[114,0,114,45],[119,0,119,45]]}
[null,null,null,null,null,null,null,null,null,null,null,null,null,null,null,null,null,null,null,null,null,null,null,null,null,null,null,null,null,null,null,null,null,null,null,null,null,null,null,"Додаток 1",null,null,null,null,null,null,null,null,null,null,null,null,null,null,null,null,null,null,null,null,null,null,null,null,null,null,null,null,null,null,null,null,null,"Увага! У зв'язку з певними особливостями заповнення фінансової звітності пропонуємо Вам скористатись листом \"Для розрахунків\", щоб скласти звіт, а потім роздрукувати ГОТОВИЙ ЗВІТ з однойменного листа.\nДаний бланк містить основні формули для проведення розрахунків під час його заповнення. Комірки з формулами позначені блакитним кольором. У разі необхідності бланк може бути доповнено іншими формулами. Також можуть бути змінені параметри комірок.\n'P.S. Дані примітки та колір комірок не друкуються."]
[null,null,null,null,null,null,null,null,null,null,null,null,null,null,null,null,null,null,null,null,null,null,null,null,null,null,null,null,null,null,null,null,null,null,null,null,null,null,null,"до Національного положення (стандарту) бухгалтерського обліку"]
[null,null,null,null,null,null,null,null,null,null,null,null,null,null,null,null,null,null,null,null,null,null,null,null,null,null,null,null,null,null,null,null,null,null,null,null,null,null,null,"1 \"Загальні вимоги до фінансової звітності\""]
[]
[null,null,null,null,null,null,null,null,null,null,null,null,null,null,null,null,null,null,null,null,null,null,null,null,null,null,null,null,null,null,null,null,null,null,null,null,null,null,null,null,null,null,null,null,null,null,null,null,null,null,null,null,null,null,null,null,null,null,null,null,"КОДИ"]
["Дата (рік, місяць, число)",null,null,null,null,null,null,null,null,null,null,null,null,null,null,null,null,null,null,null,null,null,null,null,null,null,null,null,null,null,null,null,null,null,null,null,null,null,null,null,null,null,null,null,null,null,null,null,null,null,null,null,null,null,null,null,null,null,null,null,"2017",null,null,"01",null,null,"01"]
["Підприємство",null,null,null,null,null,null,null,null,"ПТ \"Діла Ломбард\"",null,null,null,null,null,null,null,null,null,null,null,null,null,null,null,null,null,null,null,null,null,null,null,null,null,null,null,null,null,null,null,null,null,null,null,null,null,null,null,null,null,"за ЄДРПОУ",null,null,null,null,null,null,null,null,"30839335"]
["Територія",null,null,null,null,null,null,"Київська область",null,null,null,null,null,null,null,null,null,null,null,null,null,null,null,null,null,null,null,null,null,null,null,null,null,null,null,null,null,null,null,null,null,null,null,null,null,null,null,null,null,null,null,"за КОАТУУ",null,null,null,null,null,null,null,null,"3211600000"]
["Організаційно-правова форма господарювання",null,null,null,null,null,null,null,null,null,null,null,null,null,null,null,null,null,null,null,null,null,null,null,null,null,null,"повне товариство ",null,null,null,null,null,null,null,null,null,null,null,null,null,null,null,null,null,null,null,null,null,null,null,"за КОПФГ",null,null,null,null,null,null,null,null,"262"]
["Вид економічної діяльності",null,null,null,null,null,null,null,null,null,null,null,null,null,null,null,"інші види кредитування",null,null,null,null,null,null,null,null,null,null,null,null,null,null,null,null,null,null,null,null,null,null,null,null,null,null,null,null,null,null,null,null,null,null,"за КВЕД",null,null,null,null,null,null,null,null,"64.62"]
["Середня кількість працівників1",null,null,null,null,null,null,null,null,null,null,null,null,null,null,null,null,null,"16"]
["Адреса, телефон",null,null,null,null,null,null,null,null,null,"08702 Київська обл., м.Обухів, вул. Миру,9, оф.181 а."]
[]
["Складено (зробити позначку \"v\" у відповідній клітинці):"]
["за положеннями (стандартами) бухгалтерського обліку"]
["за міжнародними стандартами фінансової звітності",null,null,null,null,null,null,null,null,null,null,null,null,null,null,null,null,null,null,null,null,null,null,null,null,null,null,null,null,null,null,null,null,null,null,null,null,null,null,null,null,null,null,null,null,null,null,null,null,null,null,null,null,null,null,null,null,null,null,null,"V"]
[]
["Баланс (Звіт про фінансовий стан)"]
[null,null,null,null,null,null,null,null,null,null,null,null,null,null,null,null,null,null,null,null,null,null,null,null,null,"на",null,"31 грудня",null,null,null,null,null,null,null,null,null,null,"20",null,"15",null,"р."]
[null,null,null,null,null,null,null,null,null,null,null,null,null,null,null,null,null,null,null,null,null,null,null,null,null,null,null,null,null,null,null,null,null,null,null,null,null,null,null,null,null,null,"Форма N 1",null,null,null,null,null,null,null,"Код за ДКУД",null,null,null,null,null,null,null,null,1801001]
[]
["Актив",null,null,null,null,null,null,null,null,null,null,null,null,null,null,null,null,null,null,null,null,null,null,null,null,null,null,null,null,null,null,null,null,null,null,null,null,null,null,null,null,null,null,null,null,null,"Код рядка",null,null,null,"На початок звітного періоду",null,null,null,null,null,null,null,null,"На кінець звітного періоду"]
[1,null,null,null,null,null,null,null,null,null,null,null,null,null,null,null,null,null,null,null,null,null,null,null,null,null,null,null,null,null,null,null,null,null,null,null,null,null,null,null,null,null,null,null,null,null,2,null,null,null,3,null,null,null,null,null,null,null,null,4]
["I. Необоротні активи",null,null,null,null,null,null,null,null,null,null,null,null,null,null,null,null,null,null,null,null,null,null,null,null,null,null,null,null,null,null,null,null,null,null,null,null,null,null,null,null,null,null,null,null,null,1000]
["Нематеріальні активи",null,null,null,null,null,null,null,null,null,null,null,null,null,null,null,null,null,null,null,null,null,null,null,null,null,null,null,null,null,null,null,null,null,null,null,null,null,null,null,null,null,null,null,null,null,null,null,null,null,{"$f":"AY26-AY27","v":0},null,null,null,null,null,null,null,null,{"$f":"BH26-BH27","v":0}]
["первісна вартість",null,null,null,null,null,null,null,null,null,null,null,null,null,null,null,null,null,null,null,null,null,null,null,null,null,null,null,null,null,null,null,null,null,null,null,null,null,null,null,null,null,null,null,null,null,1001]
["накопичена амортизація",null,null,null,null,null,null,null,null,null,null,null,null,null,null,null,null,null,null,null,null,null,null,null,null,null,null,null,null,null,null,null,null,null,null,null,null,null,null,null,null,null,null,null,null,null,1002]
["Незавершені капітальні інвестиції",null,null,null,null,null,null,null,null,null,null,null,null,null,null,null,null,null,null,null,null,null,null,null,null,null,null,null,null,null,null,null,null,null,null,null,null,null,null,null,null,null,null,null,null,null,1005]
["Основні засоби",null,null,null,null,null,null,null,null,null,null,null,null,null,null,null,null,null,null,null,null,null,null,null,null,null,null,null,null,null,null,null,null,null,null,null,null,null,null,null,null,null,null,null,null,null,"1010",null,null,null,{"$f":"AY30-AY31","v":140},null,null,null,null,null,null,null,null,{"$f":"BH30-BH31","v":146}]
["первісна вартість",null,null,null,null,null,null,null,null,null,null,null,null,null,null,null,null,null,null,null,null,null,null,null,null,null,null,null,null,null,null,null,null,null,null,null,null,null,null,null,null,null,null,null,null,null,1011,null,null,null,235,null,null,null,null,null,null,null,null,241]
["знос",null,null,null,null,null,null,null,null,null,null,null,null,null,null,null,null,null,null,null,null,null,null,null,null,null,null,null,null,null,null,null,null,null,null,null,null,null,null,null,null,null,null,null,null,null,1012,null,null,null,95,null,null,null,null,null,null,null,null,95]
["Інвестиційна нерухомість",null,null,null,null,null,null,null,null,null,null,null,null,null,null,null,null,null,null,null,null,null,null,null,null,null,null,null,null,null,null,null,null,null,null,null,null,null,null,null,null,null,null,null,null,null,1015,null,null,null,{"$f":"AY33-AY34","v":0},null,null,null,null,null,null,null,null,{"$f":"BH33-BH34","v":0}]
["   Первісна вартість інвестиційної нерухомості",null,null,null,null,null,null,null,null,null,null,null,null,null,null,null,null,null,null,null,null,null,null,null,null,null,null,null,null,null,null,null,null,null,null,null,null,null,null,null,null,null,null,null,null,null,"1016"]
["   Знос інвестиційної нерухомості",null,null,null,null,null,null,null,null,null,null,null,null,null,null,null,null,null,null,null,null,null,null,null,null,null,null,null,null,null,null,null,null,null,null,null,null,null,null,null,null,null,null,null,null,null,"1017"]
["Довгострокові біологічні активи",null,null,null,null,null,null,null,null,null,null,null,null,null,null,null,null,null,null,null,null,null,null,null,null,null,null,null,null,null,null,null,null,null,null,null,null,null,null,null,null,null,null,null,null,null,1020,null,null,null,{"$f":"AY36-AY37","v":0},null,null,null,null,null,null,null,null,{"$f":"BH36-BH37","v":0}]
["   Первісна вартість довгострокових біологічних активів",null,null,null,null,null,null,null,null,null,null,null,null,null,null,null,null,null,null,null,null,null,null,null,null,null,null,null,null,null,null,null,null,null,null,null,null,null,null,null,null,null,null,null,null,null,"1021"]
["   Накопичена амортизація довгострокових біологічних активів",null,null,null,null,null,null,null,null,null,null,null,null,null,null,null,null,null,null,null,null,null,null,null,null,null,null,null,null,null,null,null,null,null,null,null,null,null,null,null,null,null,null,null,null,null,"1022"]
["Довгострокові фінансові інвестиції:",null,null,null,null,null,null,null,null,null,null,null,null,null,null,null,null,null,null,null,null,null,null,null,null,null,null,null,null,null,null,null,null,null,null,null,null,null,null,null,null,null,null,null,null,null,1030]
["які обліковуються за методом участі в капіталі інших підприємств"]
["інші фінансові інвестиції",null,null,null,null,null,null,null,null,null,null,null,null,null,null,null,null,null,null,null,null,null,null,null,null,null,null,null,null,null,null,null,null,null,null,null,null,null,null,null,null,null,null,null,null,null,1035]
["Довгострокова дебіторська заборгованість",null,null,null,null,null,null,null,null,null,null,null,null,null,null,null,null,null,null,null,null,null,null,null,null,null,null,null,null,null,null,null,null,null,null,null,null,null,null,null,null,null,null,null,null,null,1040]
["Відстрочені податкові активи",null,null,null,null,null,null,null,null,null,null,null,null,null,null,null,null,null,null,null,null,null,null,null,null,null,null,null,null,null,null,null,null,null,null,null,null,null,null,null,null,null,null,null,null,null,1045]
["Гудвіл",null,null,null,null,null,null,null,null,null,null,null,null,null,null,null,null,null,null,null,null,null,null,null,null,null,null,null,null,null,null,null,null,null,null,null,null,null,null,null,null,null,null,null,null,null,"1050"]
["Відстрочені аквізиційні витрати",null,null,null,null,null,null,null,null,null,null,null,null,null,null,null,null,null,null,null,null,null,null,null,null,null,null,null,null,null,null,null,null,null,null,null,null,null,null,null,null,null,null,null,null,null,"1060"]
["Залишок коштів у централізованих страхових резервних фондах",null,null,null,null,null,null,null,null,null,null,null,null,null,null,null,null,null,null,null,null,null,null,null,null,null,null,null,null,null,null,null,null,null,null,null,null,null,null,null,null,null,null,null,null,null,"1065"]
["Інші необоротні активи",null,null,null,null,null,null,null,null,null,null,null,null,null,null,null,null,null,null,null,null,null,null,null,null,null,null,null,null,null,null,null,null,null,null,null,null,null,null,null,null,null,null,null,null,null,1090]
["Усього за розділом I",null,null,null,null,null,null,null,null,null,null,null,null,null,null,null,null,null,null,null,null,null,null,null,null,null,null,null,null,null,null,null,null,null,null,null,null,null,null,null,null,null,null,null,null,null,1095,null,null,null,{"$f":"AY25+AY28+AY29+AY32+AY35+AY39+AY40+AY41+AY42+AY46","v":140},null,null,null,null,null,null,null,null,{"$f":"BH25+BH28+BH29+BH32+BH35+BH39+BH40+BH41+BH42+BH46","v":146}]
["II. Оборотні активи",null,null,null,null,null,null,null,null,null,null,null,null,null,null,null,null,null,null,null,null,null,null,null,null,null,null,null,null,null,null,null,null,null,null,null,null,null,null,null,null,null,null,null,null,null,1100]
["Запаси",null,null,null,null,null,null,null,null,null,null,null,null,null,null,null,null,null,null,null,null,null,null,null,null,null,null,null,null,null,null,null,null,null,null,null,null,null,null,null,null,null,null,null,null,null,null,null,null,null,53,null,null,null,null,null,null,null,null,53]
["Виробничі запаси",null,null,null,null,null,null,null,null,null,null,null,null,null,null,null,null,null,null,null,null,null,null,null,null,null,null,null,null,null,null,null,null,null,null,null,null,null,null,null,null,null,null,null,null,null,"1101"]
["Незавершене виробництво",null,null,null,null,null,null,null,null,null,null,null,null,null,null,null,null,null,null,null,null,null,null,null,null,null,null,null,null,null,null,null,null,null,null,null,null,null,null,null,null,null,null,null,null,null,"1102"]
["Готова продукція",null,null,null,null,null,null,null,null,null,null,null,null,null,null,null,null,null,null,null,null,null,null,null,null,null,null,null,null,null,null,null,null,null,null,null,null,null,null,null,null,null,null,null,null,null,"1103"]
["Товари",null,null,null,null,null,null,null,null,null,null,null,null,null,null,null,null,null,null,null,null,null,null,null,null,null,null,null,null,null,null,null,null,null,null,null,null,null,null,null,null,null,null,null,null,null,"1104",null,null,null,53,null,null,null,null,null,null,null,null,53]
["Поточні біологічні активи",null,null,null,null,null,null,null,null,null,null,null,null,null,null,null,null,null,null,null,null,null,null,null,null,null,null,null,null,null,null,null,null,null,null,null,null,null,null,null,null,null,null,null,null,null,1110]
["Депозити перестрахування",null,null,null,null,null,null,null,null,null,null,null,null,null,null,null,null,null,null,null,null,null,null,null,null,null,null,null,null,null,null,null,null,null,null,null,null,null,null,null,null,null,null,null,null,null,"1115"]
["Векселі одержані",null,null,null,null,null,null,null,null,null,null,null,null,null,null,null,null,null,null,null,null,null,null,null,null,null,null,null,null,null,null,null,null,null,null,null,null,null,null,null,null,null,null,null,null,null,"1120"]
["Дебіторська заборгованість за продукцію, товари, роботи, послуги",null,null,null,null,null,null,null,null,null,null,null,null,null,null,null,null,null,null,null,null,null,null,null,null,null,null,null,null,null,null,null,null,null,null,null,null,null,null,null,null,null,null,null,null,null,1125]
["Дебіторська заборгованість за розрахунками:",null,null,null,null,null,null,null,null,null,null,null,null,null,null,null,null,null,null,null,null,null,null,null,null,null,null,null,null,null,null,null,null,null,null,null,null,null,null,null,null,null,null,null,null,null,1130]
["за виданими авансами"]
["з бюджетом",null,null,null,null,null,null,null,null,null,null,null,null,null,null,null,null,null,null,null,null,null,null,null,null,null,null,null,null,null,null,null,null,null,null,null,null,null,null,null,null,null,null,null,null,null,1135,null,null,null,192,null,null,null,null,null,null,null,null,198]
["у тому числі з податку на прибуток",null,null,null,null,null,null,null,null,null,null,null,null,null,null,null,null,null,null,null,null,null,null,null,null,null,null,null,null,null,null,null,null,null,null,null,null,null,null,null,null,null,null,null,null,null,1136]
["Дебіторська заборгованість за розрахунками з нарахованих доходів",null,null,null,null,null,null,null,null,null,null,null,null,null,null,null,null,null,null,null,null,null,null,null,null,null,null,null,null,null,null,null,null,null,null,null,null,null,null,null,null,null,null,null,null,null,"1140"]
["Дебіторська заборгованість за розрахунками із внутрішніх розрахунків",null,null,null,null,null,null,null,null,null,null,null,null,null,null,null,null,null,null,null,null,null,null,null,null,null,null,null,null,null,null,null,null,null,null,null,null,null,null,null,null,null,null,null,null,null,"1145"]
["Інша поточна дебіторська заборгованість",null,null,null,null,null,null,null,null,null,null,null,null,null,null,null,null,null,null,null,null,null,null,null,null,null,null,null,null,null,null,null,null,null,null,null,null,null,null,null,null,null,null,null,null,null,1155,null,null,null,1380,null,null,null,null,null,null,null,null,1415]
["Поточні фінансові інвестиції",null,null,null,null,null,null,null,null,null,null,null,null,null,null,null,null,null,null,null,null,null,null,null,null,null,null,null,null,null,null,null,null,null,null,null,null,null,null,null,null,null,null,null,null,null,1160]
["Гроші та їх еквіваленти",null,null,null,null,null,null,null,null,null,null,null,null,null,null,null,null,null,null,null,null,null,null,null,null,null,null,null,null,null,null,null,null,null,null,null,null,null,null,null,null,null,null,null,null,null,1165,null,null,null,253,null,null,null,null,null,null,null,null,267]
["Готівка",null,null,null,null,null,null,null,null,null,null,null,null,null,null,null,null,null,null,null,null,null,null,null,null,null,null,null,null,null,null,null,null,null,null,null,null,null,null,null,null,null,null,null,null,null,"1166",null,null,null,174,null,null,null,null,null,null,null,null,118]
["Рахунки в банках",null,null,null,null,null,null,null,null,null,null,null,null,null,null,null,null,null,null,null,null,null,null,null,null,null,null,null,null,null,null,null,null,null,null,null,null,null,null,null,null,null,null,null,null,null,"1167",null,null,null,109,null,null,null,null,null,null,null,null,149]
["Витрати майбутніх періодів",null,null,null,null,null,null,null,null,null,null,null,null,null,null,null,null,null,null,null,null,null,null,null,null,null,null,null,null,null,null,null,null,null,null,null,null,null,null,null,null,null,null,null,null,null,1170]
["Частка перестраховика у страхових резервах",null,null,null,null,null,null,null,null,null,null,null,null,null,null,null,null,null,null,null,null,null,null,null,null,null,null,null,null,null,null,null,null,null,null,null,null,null,null,null,null,null,null,null,null,null,"1180"]
["у тому числі в:\nрезервах довгострокових зобов'язань",null,null,null,null,null,null,null,null,null,null,null,null,null,null,null,null,null,null,null,null,null,null,null,null,null,null,null,null,null,null,null,null,null,null,null,null,null,null,null,null,null,null,null,null,null,"1181"]
["резервах збитків або резервах належних виплат",null,null,null,null,null,null,null,null,null,null,null,null,null,null,null,null,null,null,null,null,null,null,null,null,null,null,null,null,null,null,null,null,null,null,null,null,null,null,null,null,null,null,null,null,null,"1182"]
["резервах незароблених премій",null,null,null,null,null,null,null,null,null,null,null,null,null,null,null,null,null,null,null,null,null,null,null,null,null,null,null,null,null,null,null,null,null,null,null,null,null,null,null,null,null,null,null,null,null,"1183"]
["інших страхових резервах",null,null,null,null,null,null,null,null,null,null,null,null,null,null,null,null,null,null,null,null,null,null,null,null,null,null,null,null,null,null,null,null,null,null,null,null,null,null,null,null,null,null,null,null,null,"1184"]
["Інші оборотні активи",null,null,null,null,null,null,null,null,null,null,null,null,null,null,null,null,null,null,null,null,null,null,null,null,null,null,null,null,null,null,null,null,null,null,null,null,null,null,null,null,null,null,null,null,null,1190]
["Усього за розділом II",null,null,null,null,null,null,null,null,null,null,null,null,null,null,null,null,null,null,null,null,null,null,null,null,null,null,null,null,null,null,null,null,null,null,null,null,null,null,null,null,null,null,null,null,null,1195,null,null,null,{"$f":"AY49+AY54+AY57+AY59+AY60+AY64+AY65+AY66+AY69+AY75","v":1878},null,null,null,null,null,null,null,null,{"$f":"BH49+BH54+BH57+BH59+BH60+BH64+BH65+BH66+BH69+BH75+BH56","v":1933}]
["III. Необоротні активи, утримувані для продажу, та групи вибуття",null,null,null,null,null,null,null,null,null,null,null,null,null,null,null,null,null,null,null,null,null,null,null,null,null,null,null,null,null,null,null,null,null,null,null,null,null,null,null,null,null,null,null,null,null,1200]
["Баланс",null,null,null,null,null,null,null,null,null,null,null,null,null,null,null,null,null,null,null,null,null,null,null,null,null,null,null,null,null,null,null,null,null,null,null,null,null,null,null,null,null,null,null,null,null,1300,null,null,null,{"$f":"AY47+AY76+AY77","v":2018},null,null,null,null,null,null,null,null,{"$f":"BH47+BH76+BH77","v":2079}]
[]
["Пасив",null,null,null,null,null,null,null,null,null,null,null,null,null,null,null,null,null,null,null,null,null,null,null,null,null,null,null,null,null,null,null,null,null,null,null,null,null,null,null,null,null,null,null,null,null,"Код\nрядка",null,null,null,"На початок звітного періоду",null,null,null,null,null,null,null,null,"На кінець звітного періоду"]
[]
[1,null,null,null,null,null,null,null,null,null,null,null,null,null,null,null,null,null,null,null,null,null,null,null,null,null,null,null,null,null,null,null,null,null,null,null,null,null,null,null,null,null,null,null,null,null,2,null,null,null,3,null,null,null,null,null,null,null,null,4]
["I. Власний капітал",null,null,null,null,null,null,null,null,null,null,null,null,null,null,null,null,null,null,null,null,null,null,null,null,null,null,null,null,null,null,null,null,null,null,null,null,null,null,null,null,null,null,null,null,null,1400]
["Зареєстрований (пайовий) капітал",null,null,null,null,null,null,null,null,null,null,null,null,null,null,null,null,null,null,null,null,null,null,null,null,null,null,null,null,null,null,null,null,null,null,null,null,null,null,null,null,null,null,null,null,null,null,null,null,null,1310,null,null,null,null,null,null,null,null,1310]
["Внески до незареєстрованого статутного капіталу",null,null,null,null,null,null,null,null,null,null,null,null,null,null,null,null,null,null,null,null,null,null,null,null,null,null,null,null,null,null,null,null,null,null,null,null,null,null,null,null,null,null,null,null,null,"1401"]
["Капітал у дооцінках",null,null,null,null,null,null,null,null,null,null,null,null,null,null,null,null,null,null,null,null,null,null,null,null,null,null,null,null,null,null,null,null,null,null,null,null,null,null,null,null,null,null,null,null,null,1405]
["Додатковий капітал",null,null,null,null,null,null,null,null,null,null,null,null,null,null,null,null,null,null,null,null,null,null,null,null,null,null,null,null,null,null,null,null,null,null,null,null,null,null,null,null,null,null,null,null,null,1410]
["Емісійний дохід",null,null,null,null,null,null,null,null,null,null,null,null,null,null,null,null,null,null,null,null,null,null,null,null,null,null,null,null,null,null,null,null,null,null,null,null,null,null,null,null,null,null,null,null,null,"1411"]
["Накопичені курсові різниці",null,null,null,null,null,null,null,null,null,null,null,null,null,null,null,null,null,null,null,null,null,null,null,null,null,null,null,null,null,null,null,null,null,null,null,null,null,null,null,null,null,null,null,null,null,"1412"]
["Резервний капітал",null,null,null,null,null,null,null,null,null,null,null,null,null,null,null,null,null,null,null,null,null,null,null,null,null,null,null,null,null,null,null,null,null,null,null,null,null,null,null,null,null,null,null,null,null,1415,null,null,null,"8",null,null,null,null,null,null,null,null,"8"]
["Нерозподілений прибуток (непокритий збиток)",null,null,null,null,null,null,null,null,null,null,null,null,null,null,null,null,null,null,null,null,null,null,null,null,null,null,null,null,null,null,null,null,null,null,null,null,null,null,null,null,null,null,null,null,null,1420,null,null,null,null,674,null,null,null,null,null,null,null,null,729]
["Неоплачений капітал",null,null,null,null,null,null,null,null,null,null,null,null,null,null,null,null,null,null,null,null,null,null,null,null,null,null,null,null,null,null,null,null,null,null,null,null,null,null,null,null,null,null,null,null,null,1425,null,null,null,"(",null,null,null,null,null,null,")",null,"(",null,null,null,null,null,null,")"]
["Вилучений капітал",null,null,null,null,null,null,null,null,null,null,null,null,null,null,null,null,null,null,null,null,null,null,null,null,null,null,null,null,null,null,null,null,null,null,null,null,null,null,null,null,null,null,null,null,null,1430,null,null,null,"(",null,null,null,null,null,null,")",null,"(",null,null,null,null,null,null,")"]
["Інші резерви",null,null,null,null,null,null,null,null,null,null,null,null,null,null,null,null,null,null,null,null,null,null,null,null,null,null,null,null,null,null,null,null,null,null,null,null,null,null,null,null,null,null,null,null,null,"1435"]
["Усього за розділом I",null,null,null,null,null,null,null,null,null,null,null,null,null,null,null,null,null,null,null,null,null,null,null,null,null,null,null,null,null,null,null,null,null,null,null,null,null,null,null,null,null,null,null,null,null,1495,null,null,null,{"$f":"AY84+AY86+AY87+AY90+AY94+AZ91-BA92-BA93","v":1992},null,null,null,null,null,null,null,null,{"$f":"BH84+BH86+BH87+BH90+BH94+BI91-BJ92-BJ93","v":2047}]
["II. Довгострокові зобов'язання і забезпечення",null,null,null,null,null,null,null,null,null,null,null,null,null,null,null,null,null,null,null,null,null,null,null,null,null,null,null,null,null,null,null,null,null,null,null,null,null,null,null,null,null,null,null,null,null,1500]
["Відстрочені податкові зобов'язання"]
["Пенсійні зобов'язання",null,null,null,null,null,null,null,null,null,null,null,null,null,null,null,null,null,null,null,null,null,null,null,null,null,null,null,null,null,null,null,null,null,null,null,null,null,null,null,null,null,null,null,null,null,"1505"]
["Довгострокові кредити банків",null,null,null,null,null,null,null,null,null,null,null,null,null,null,null,null,null,null,null,null,null,null,null,null,null,null,null,null,null,null,null,null,null,null,null,null,null,null,null,null,null,null,null,null,null,1510]
["Інші довгострокові зобов'язання",null,null,null,null,null,null,null,null,null,null,null,null,null,null,null,null,null,null,null,null,null,null,null,null,null,null,null,null,null,null,null,null,null,null,null,null,null,null,null,null,null,null,null,null,null,1515]
["Довгострокові забезпечення",null,null,null,null,null,null,null,null,null,null,null,null,null,null,null,null,null,null,null,null,null,null,null,null,null,null,null,null,null,null,null,null,null,null,null,null,null,null,null,null,null,null,null,null,null,1520]
["Довгострокові забезпечення витрат персоналу",null,null,null,null,null,null,null,null,null,null,null,null,null,null,null,null,null,null,null,null,null,null,null,null,null,null,null,null,null,null,null,null,null,null,null,null,null,null,null,null,null,null,null,null,null,"1521"]
["Цільове фінансування",null,null,null,null,null,null,null,null,null,null,null,null,null,null,null,null,null,null,null,null,null,null,null,null,null,null,null,null,null,null,null,null,null,null,null,null,null,null,null,null,null,null,null,null,null,1525]
["Благодійна допомога",null,null,null,null,null,null,null,null,null,null,null,null,null,null,null,null,null,null,null,null,null,null,null,null,null,null,null,null,null,null,null,null,null,null,null,null,null,null,null,null,null,null,null,null,null,"1526"]
["Страхові резерви",null,null,null,null,null,null,null,null,null,null,null,null,null,null,null,null,null,null,null,null,null,null,null,null,null,null,null,null,null,null,null,null,null,null,null,null,null,null,null,null,null,null,null,null,null,"1530"]
["у тому числі:\nрезерв довгострокових зобов'язань",null,null,null,null,null,null,null,null,null,null,null,null,null,null,null,null,null,null,null,null,null,null,null,null,null,null,null,null,null,null,null,null,null,null,null,null,null,null,null,null,null,null,null,null,null,"1531"]
["резерв збитків або резерв належних виплат",null,null,null,null,null,null,null,null,null,null,null,null,null,null,null,null,null,null,null,null,null,null,null,null,null,null,null,null,null,null,null,null,null,null,null,null,null,null,null,null,null,null,null,null,null,"1532"]
["резерв незароблених премій",null,null,null,null,null,null,null,null,null,null,null,null,null,null,null,null,null,null,null,null,null,null,null,null,null,null,null,null,null,null,null,null,null,null,null,null,null,null,null,null,null,null,null,null,null,"1533"]
["інші страхові резерви",null,null,null,null,null,null,null,null,null,null,null,null,null,null,null,null,null,null,null,null,null,null,null,null,null,null,null,null,null,null,null,null,null,null,null,null,null,null,null,null,null,null,null,null,null,"1534"]
["Інвестиційні контракти",null,null,null,null,null,null,null,null,null,null,null,null,null,null,null,null,null,null,null,null,null,null,null,null,null,null,null,null,null,null,null,null,null,null,null,null,null,null,null,null,null,null,null,null,null,"1535"]
["Призовий фонд",null,null,null,null,null,null,null,null,null,null,null,null,null,null,null,null,null,null,null,null,null,null,null,null,null,null,null,null,null,null,null,null,null,null,null,null,null,null,null,null,null,null,null,null,null,"1540"]
["Резерв на виплату джек-поту",null,null,null,null,null,null,null,null,null,null,null,null,null,null,null,null,null,null,null,null,null,null,null,null,null,null,null,null,null,null,null,null,null,null,null,null,null,null,null,null,null,null,null,null,null,"1545"]
["Усього за розділом II",null,null,null,null,null,null,null,null,null,null,null,null,null,null,null,null,null,null,null,null,null,null,null,null,null,null,null,null,null,null,null,null,null,null,null,null,null,null,null,null,null,null,null,null,null,1595,null,null,null,{"$f":"AY97+AY98+AY99+AY100+AY101+AY103+AY105+AY110+AY111+AY112","v":0},null,null,null,null,null,null,null,null,{"$f":"BH97+BH98+BH99+BH100+BH101+BH103+BH105+BH110+BH111+BH112","v":0}]
["IІІ. Поточні зобов'язання і забезпечення",null,null,null,null,null,null,null,null,null,null,null,null,null,null,null,null,null,null,null,null,null,null,null,null,null,null,null,null,null,null,null,null,null,null,null,null,null,null,null,null,null,null,null,null,null,1600]
["Короткострокові кредити банків"]
["Векселі видані",null,null,null,null,null,null,null,null,null,null,null,null,null,null,null,null,null,null,null,null,null,null,null,null,null,null,null,null,null,null,null,null,null,null,null,null,null,null,null,null,null,null,null,null,null,"1605"]
["Поточна кредиторська заборгованість за:",null,null,null,null,null,null,null,null,null,null,null,null,null,null,null,null,null,null,null,null,null,null,null,null,null,null,null,null,null,null,null,null,null,null,null,null,null,null,null,null,null,null,null,null,null," "]
["довгостроковими зобов'язаннями",null,null,null,null,null,null,null,null,null,null,null,null,null,null,null,null,null,null,null,null,null,null,null,null,null,null,null,null,null,null,null,null,null,null,null,null,null,null,null,null,null,null,null,null,null,"1610"]
["товари, роботи, послуги",null,null,null,null,null,null,null,null,null,null,null,null,null,null,null,null,null,null,null,null,null,null,null,null,null,null,null,null,null,null,null,null,null,null,null,null,null,null,null,null,null,null,null,null,null,1615]
["розрахунками з бюджетом",null,null,null,null,null,null,null,null,null,null,null,null,null,null,null,null,null,null,null,null,null,null,null,null,null,null,null,null,null,null,null,null,null,null,null,null,null,null,null,null,null,null,null,null,null,1620,null,null,null,10,null,null,null,null,null,null,null,null,16]
["у тому числі з податку на прибуток",null,null,null,null,null,null,null,null,null,null,null,null,null,null,null,null,null,null,null,null,null,null,null,null,null,null,null,null,null,null,null,null,null,null,null,null,null,null,null,null,null,null,null,null,null,1621,null,null,null,10,null,null,null,null,null,null,null,null,16]
["розрахунками зі страхування",null,null,null,null,null,null,null,null,null,null,null,null,null,null,null,null,null,null,null,null,null,null,null,null,null,null,null,null,null,null,null,null,null,null,null,null,null,null,null,null,null,null,null,null,null,1625]
["розрахунками з оплати праці",null,null,null,null,null,null,null,null,null,null,null,null,null,null,null,null,null,null,null,null,null,null,null,null,null,null,null,null,null,null,null,null,null,null,null,null,null,null,null,null,null,null,null,null,null,1630,null,null,null,16,null,null,null,null,null,null,null,null,16]
["Поточна кредиторська заборгованість за одержаними авансами",null,null,null,null,null,null,null,null,null,null,null,null,null,null,null,null,null,null,null,null,null,null,null,null,null,null,null,null,null,null,null,null,null,null,null,null,null,null,null,null,null,null,null,null,null,"1635"]
["Поточна кредиторська заборгованість за розрахунками з учасниками",null,null,null,null,null,null,null,null,null,null,null,null,null,null,null,null,null,null,null,null,null,null,null,null,null,null,null,null,null,null,null,null,null,null,null,null,null,null,null,null,null,null,null,null,null,"1640"]
["Поточна кредиторська заборгованість із внутрішніх розрахунків",null,null,null,null,null,null,null,null,null,null,null,null,null,null,null,null,null,null,null,null,null,null,null,null,null,null,null,null,null,null,null,null,null,null,null,null,null,null,null,null,null,null,null,null,null,"1645"]
["Поточна кредиторська заборгованість за страховою діяльністю",null,null,null,null,null,null,null,null,null,null,null,null,null,null,null,null,null,null,null,null,null,null,null,null,null,null,null,null,null,null,null,null,null,null,null,null,null,null,null,null,null,null,null,null,null,"1650"]
["Поточні забезпечення",null,null,null,null,null,null,null,null,null,null,null,null,null,null,null,null,null,null,null,null,null,null,null,null,null,null,null,null,null,null,null,null,null,null,null,null,null,null,null,null,null,null,null,null,null,1660]
["Доходи майбутніх періодів",null,null,null,null,null,null,null,null,null,null,null,null,null,null,null,null,null,null,null,null,null,null,null,null,null,null,null,null,null,null,null,null,null,null,null,null,null,null,null,null,null,null,null,null,null,1665]
["Відстрочені комісійні доходи від перестраховиків",null,null,null,null,null,null,null,null,null,null,null,null,null,null,null,null,null,null,null,null,null,null,null,null,null,null,null,null,null,null,null,null,null,null,null,null,null,null,null,null,null,null,null,null,null,"1670"]
["Інші поточні зобов'язання",null,null,null,null,null,null,null,null,null,null,null,null,null,null,null,null,null,null,null,null,null,null,null,null,null,null,null,null,null,null,null,null,null,null,null,null,null,null,null,null,null,null,null,null,null,1690]
["Усього за розділом IІІ",null,null,null,null,null,null,null,null,null,null,null,null,null,null,null,null,null,null,null,null,null,null,null,null,null,null,null,null,null,null,null,null,null,null,null,null,null,null,null,null,null,null,null,null,null,1695,null,null,null,{"$f":"AY115+AY116+AY118+AY119+AY120+AY122+AY123+AY124+AY125+AY126+AY127+AY128+AY129+AY130+AY131","v":26},null,null,null,null,null,null,null,null,{"$f":"BH115+BH116+BH118+BH119+BH120+BH122+BH123+BH124+BH125+BH126+BH127+BH128+BH129+BH130+BH131","v":32}]
["ІV. Зобов'язання, пов'язані з необоротними активами,",null,null,null,null,null,null,null,null,null,null,null,null,null,null,null,null,null,null,null,null,null,null,null,null,null,null,null,null,null,null,null,null,null,null,null,null,null,null,null,null,null,null,null,null,null,1700]
["утримуваними для продажу, та групами вибуття"]
["V. Чиста вартість активів недержавного пенсійного фонду",null,null,null,null,null,null,null,null,null,null,null,null,null,null,null,null,null,null,null,null,null,null,null,null,null,null,null,null,null,null,null,null,null,null,null,null,null,null,null,null,null,null,null,null,null,"1800"]
["Баланс",null,null,null,null,null,null,null,null,null,null,null,null,null,null,null,null,null,null,null,null,null,null,null,null,null,null,null,null,null,null,null,null,null,null,null,null,null,null,null,null,null,null,null,null,null,1900,null,null,null,{"$f":"AY95+AY113+AY132+AY133+AY135","v":2018},null,null,null,null,null,null,null,null,{"$f":"BH95+BH113+BH132+BH133+BH135","v":2079}]
[]
["Керівник"]
[]
["Головний бухгалтер"]
[]
["____________\n1 Визначається в порядку, встановленому центральним органом\nвиконавчої влади, що реалізує державну політику у сфері статистики."]

{"sheet":"ГОТОВИЙ ЗВІТ","index":1,"n_rows":144,"n_cols":74,"rows_kept":144,"cut":false,"hidden":false,"merged":[[8,51,8,59],[9,51,9,59],[8,60,8,68],[0,73,12,76],[1,39,1,67],[2,39,2,67],[4,60,4,68],[5,0,5,59],[6,0,6,8],[6,9,6,50],[6,51,6,59],[6,60,6,68],[0,39,0,67],[5,60,5,62],[5,63,5,65],[5,66,5,68],[8,0,8,26],[8,27,8,50],[9,0,9,15],[9,16,9,50],[7,0,7,6],[7,7,7,50],[18,25,18,26],[18,27,18,37],[15,0,15,53],[15,60,15,68],[18,38,18,39],[7,51,7,59],[7,60,7,68],[10,0,10,17],[10,18,10,61],[9,60,9,68],[21,59,21,67],[11,10,11,61],[12,0,12,68],[13,0,13,61],[18,40,18,41],[18,42,18,45],[11,0,11,9],[14,0,14,53],[14,60,14,68],[17,0,17,68],[19,42,19,49],[21,0,21,45],[21,46,21,49],[19,59,19,67],[22,0,22,45],[22,46,22,49],[22,50,22,58],[19,50,19,58],[22,59,22,67],[21,50,21,58],[24,50,24,58],[24,59,24,67],[25,59,25,67],[26,59,26,67],[23,0,23,45],[23,46,24,49],[24,0,24,45],[27,59,27,67],[26,0,26,45],[26,46,26,49],[26,50,26,58],[25,0,25,45],[25,46,25,49],[25,50,25,58],[27,0,27,45],[27,46,27,49],[27,50,27,58],[33,0,33,45],[33,46,33,49],[31,0,31,45],[31,46,31,49],[31,50,31,58],[29,0,29,45],[29,46,29,49],[29,50,29,58],[30,0,30,45],[28,0,28,45],[28,46,28,49],[28,50,28,58],[28,59,28,67],[34,0,34,45],[33,59,33,67],[34,46,34,49],[34,50,34,58],[34,59,34,67],[33,50,33,58],[32,0,32,45],[32,46,32,49],[32,50,32,58],[32,59,32,67],[30,46,30,49],[30,50,30,58],[35,59,35,67],[36,50,36,58],[36,59,36,67],[31,59,31,67],[30,59,30,67],[29,59,29,67],[35,0,35,45],[35,46,35,49],[37,0,37,45],[37,46,38,49],[38,0,38,45],[40,59,40,67],[39,59,39,67],[36,0,36,45],[36,46,36,49],[35,50,35,58],[43,59,43,67],[42,50,42,58],[41,0,41,45],[42,59,42,67],[38,59,38,67],[41,50,41,58],[41,59,41,67],[43,0,43,45],[39,0,39,45],[39,46,39,49],[39,50,39,58],[40,0,40,45],[40,46,40,49],[43,50,43,58],[42,0,42,45],[42,46,42,49],[41,46,41,49],[46,50,46,58],[38,50,38,58],[52,46,52,49],[52,50,52,58],[43,46,43,49],[40,50,40,58],[52,59,52,67],[50,46,50,49],[50,50,50,58],[44,46,44,49],[48,59,48,67],[50,59,50,67],[45,59,45,67],[44,50,44,58],[46,59,46,67],[49,59,49,67],[47,0,47,45],[47,46,48,49],[44,59,44,67],[44,0,44,45],[48,0,48,45],[46,0,46,45],[46,46,46,49],[45,0,45,45],[45,46,45,49],[45,50,45,58],[56,0,56,45],[56,46,56,49],[54,0,54,45],[54,46,54,49],[54,50,54,58],[49,0,49,45],[52,0,52,45],[53,0,53,45],[53,46,53,49],[53,50,53,58],[50,0,50,45],[48,50,48,58],[51,0,51,45],[61,0,61,45],[58,50,58,58],[55,0,55,45],[55,46,55,49],[61,46,61,49],[58,0,58,45],[59,0,59,45],[51,59,51,67],[49,46,49,49],[49,50,49,58],[53,59,53,67],[55,59,55,67],[59,59,59,67],[55,50,55,58],[54,59,54,67],[51,46,51,49],[51,50,51,58],[60,50,60,58],[60,59,60,67],[57,0,57,45],[57,46,58,49],[61,59,61,67],[61,50,61,58],[62,0,62,45],[62,50,62,58],[62,59,62,67],[56,50,56,58],[59,46,59,49],[62,46,62,49],[58,59,58,67],[56,59,56,67],[60,0,60,45],[60,46,60,49],[59,50,59,58],[64,0,64,45],[64,46,64,49],[64,50,64,58],[66,50,66,58],[66,59,66,67],[65,59,65,67],[65,46,65,49],[65,50,65,58],[66,46,66,49],[63,0,63,45],[63,46,63,49],[67,50,67,58],[65,0,65,45],[63,59,63,67],[67,0,67,45],[67,46,67,49],[63,50,63,58],[69,46,69,49],[69,50,69,58],[69,59,69,67],[66,0,66,45],[67,59,67,67],[64,59,64,67],[70,0,70,45],[70,46,70,49],[75,50,75,58],[75,59,75,67],[73,59,73,67],[68,46,68,49],[68,50,68,58],[68,0,68,45],[68,59,68,67],[69,0,69,45],[77,59,77,67],[76,59,76,67],[70,50,70,58],[70,59,70,67],[72,50,72,58],[72,59,72,67],[77,50,77,58],[74,50,74,58],[76,50,76,58],[77,0,77,45],[77,46,77,49],[72,46,72,49],[72,0,72,45],[74,0,74,45],[74,46,74,49],[76,0,76,45],[76,46,76,49],[75,0,75,45],[75,46,75,49],[79,0,80,45],[79,46,80,49],[71,50,71,58],[71,59,71,67],[74,59,74,67],[73,0,73,45],[73,46,73,49],[73,50,73,58],[71,0,71,45],[71,46,71,49],[79,50,80,58],[79,59,80,67],[83,59,83,67],[82,0,82,45],[82,46,83,49],[83,0,83,45],[83,50,83,58],[81,50,81,58],[81,59,81,67],[81,0,81,45],[81,46,81,49],[87,50,87,58],[87,59,87,67],[90,0,90,45],[90,46,90,49],[88,0,88,45],[88,46,88,49],[89,0,89,45],[89,46,89,49],[87,0,87,45],[91,61,91,65],[91,66,91,67],[90,51,90,57],[90,60,90,66],[91,57,91,58],[91,59,91,60],[86,59,86,67],[84,0,84,45],[84,46,84,49],[84,50,84,58],[84,59,84,67],[89,50,89,58],[89,59,89,67],[85,0,85,45],[85,46,85,49],[85,50,85,58],[85,59,85,67],[88,50,88,58],[88,59,88,67],[87,46,87,49],[86,0,86,45],[86,46,86,49],[86,50,86,58],[92,50,92,51],[92,52,92,56],[91,50,91,51],[91,52,91,56],[91,0,91,45],[91,46,91,49],[92,0,92,45],[92,46,92,49],[101,59,101,67],[98,59,98,67],[101,0,101,45],[101,46,101,49],[101,50,101,58],[100,0,100,45],[100,46,100,49],[100,50,100,58],[99,0,99,45],[99,46,99,49],[95,46,96,49],[96,0,96,45],[96,50,96,58],[95,0,95,45],[94,0,94,45],[94,46,94,49],[94,50,94,58],[100,59,100,67],[92,57,92,58],[93,50,93,58],[92,61,92,65],[92,66,92,67],[99,50,99,58],[99,59,99,67],[92,59,92,60],[93,59,93,67],[94,59,94,67],[98,0,98,45],[98,46,98,49],[98,50,98,58],[93,0,93,45],[93,46,93,49],[97,59,97,67],[96,59,96,67],[97,0,97,45],[97,46,97,49],[97,50,97,58],[102,0,102,45],[108,0,108,45],[108,46,108,49],[107,0,107,45],[107,46,107,49],[105,0,105,45],[105,46,105,49],[106,0,106,45],[106,46,106,49],[102,46,102,49],[102,50,102,58],[105,59,105,67],[107,50,107,58],[107,59,107,67],[106,50,106,58],[106,59,106,67],[105,50,105,58],[103,59,103,67],[102,59,102,67],[103,0,103,45],[103,46,103,49],[103,50,103,58],[111,59,111,67],[111,0,111,45],[111,46,111,49],[111,50,111,58],[110,0,110,45],[110,46,110,49],[109,0,109,45],[108,59,108,67],[109,50,109,58],[112,59,112,67],[112,50,112,58],[104,0,104,45],[104,46,104,49],[104,50,104,58],[112,0,112,45],[112,46,112,49],[119,0,119,45],[119,46,119,49],[114,50,114,58],[114,59,114,67],[109,46,109,49],[104,59,104,67],[109,59,109,67],[110,50,110,58],[110,59,110,67],[108,50,108,58],[116,46,116,49],[115,0,115,45],[123,50,123,58],[123,59,123,67],[113,0,113,45],[113,46,114,49],[119,50,119,58],[115,50,115,58],[118,50,118,58],[114,0,114,45],[125,59,125,67],[126,50,126,58],[118,0,118,45],[118,46,118,49],[115,59,115,67],[117,0,117,45],[117,46,117,49],[117,50,117,58],[117,59,117,67],[116,0,116,45],[121,59,121,67],[120,0,120,45],[115,46,115,49],[118,59,118,67],[126,0,126,45],[126,46,126,49],[126,59,126,67],[125,0,125,45],[125,46,125,49],[125,50,125,58],[120,59,120,67],[124,59,124,67],[124,50,124,58],[119,59,119,67],[122,0,122,45],[122,46,122,49],[122,50,122,58],[122,59,122,67],[121,0,121,45],[121,46,121,49],[123,0,123,45],[123,46,123,49],[124,0,124,45],[124,46,124,49],[120,46,120,49],[120,50,120,58],[121,50,121,58],[134,50,134,58],[130,59,130,67],[131,50,131,58],[132,0,132,45],[132,46,133,49],[133,0,133,45],[131,59,131,67],[131,0,131,45],[131,46,131,49],[130,50,130,58],[130,0,130,45],[130,46,130,49],[129,59,129,67],[128,46,128,49],[128,50,128,58],[129,50,129,58],[128,0,128,45],[127,50,127,58],[127,59,127,67],[127,0,127,45],[127,46,127,49],[128,59,128,67],[129,0,129,45],[129,46,129,49],[135,59,135,67],[132,59,132,67],[133,59,133,67],[134,59,134,67],[141,33,141,45],[135,50,135,58],[134,0,134,45],[134,46,134,49],[135,46,135,49],[135,0,135,45],[143,0,143,43],[132,50,132,58],[133,50,133,58],[139,0,139,14],[139,15,139,29],[139,33,139,45],[137,0,137,14],[137,15,137,29],[137,33,137,45],[141,15,141,29]]}
[null,null,null,null,null,null,null,null,null,null,null,null,null,null,null,null,null,null,null,null,null,null,null,null,null,null,null,null,null,null,null,null,null,null,null,null,null,null,null,"Додаток 1",null,null,null,null,null,null,null,null,null,null,null,null,null,null,null,null,null,null,null,null,null,null,null,null,null,null,null,null,null,null,null,null,null,"Увага! У зв'язку з певними особливостями заповнення фінансової звітності пропонуємо Вам скористатись листом \"Для розрахунків\", щоб скласти звіт, а потім роздрукувати ГОТОВИЙ ЗВІТ з однойменного листа.\nДаний бланк містить основні формули для проведення розрахунків під час його заповнення. Комірки з формулами позначені блакитним кольором. У разі необхідності бланк може бути доповнено іншими формулами. Також можуть бути змінені параметри комірок.\n'P.S. Дані примітки та колір комірок не друкуються."]
[null,null,null,null,null,null,null,null,null,null,null,null,null,null,null,null,null,null,null,null,null,null,null,null,null,null,null,null,null,null,null,null,null,null,null,null,null,null,null,"до Національного положення (стандарту) бухгалтерського обліку"]
[null,null,null,null,null,null,null,null,null,null,null,null,null,null,null,null,null,null,null,null,null,null,null,null,null,null,null,null,null,null,null,null,null,null,null,null,null,null,null,"1 \"Загальні вимоги до фінансової звітності\""]
[]
[null,null,null,null,null,null,null,null,null,null,null,null,null,null,null,null,null,null,null,null,null,null,null,null,null,null,null,null,null,null,null,null,null,null,null,null,null,null,null,null,null,null,null,null,null,null,null,null,null,null,null,null,null,null,null,null,null,null,null,null,"КОДИ"]
["Дата (рік, місяць, число)",null,null,null,null,null,null,null,null,null,null,null,null,null,null,null,null,null,null,null,null,null,null,null,null,null,null,null,null,null,null,null,null,null,null,null,null,null,null,null,null,null,null,null,null,null,null,null,null,null,null,null,null,null,null,null,null,null,null,null,"2017",null,null,"01",null,null,"01"]
["Підприємство",null,null,null,null,null,null,null,null,"ПТ \"Діла Ломбард\"",null,null,null,null,null,null,null,null,null,null,null,null,null,null,null,null,null,null,null,null,null,null,null,null,null,null,null,null,null,null,null,null,null,null,null,null,null,null,null,null,null,"за ЄДРПОУ",null,null,null,null,null,null,null,null,"30839335"]
["Територія",null,null,null,null,null,null,"Київська область",null,null,null,null,null,null,null,null,null,null,null,null,null,null,null,null,null,null,null,null,null,null,null,null,null,null,null,null,null,null,null,null,null,null,null,null,null,null,null,null,null,null,null,"за КОАТУУ",null,null,null,null,null,null,null,null,"3211600000"]
["Організаційно-правова форма господарювання",null,null,null,null,null,null,null,null,null,null,null,null,null,null,null,null,null,null,null,null,null,null,null,null,null,null,"повне товариство ",null,null,null,null,null,null,null,null,null,null,null,null,null,null,null,null,null,null,null,null,null,null,null,"за КОПФГ",null,null,null,null,null,null,null,null,"262"]
["Вид економічної діяльності",null,null,null,null,null,null,null,null,null,null,null,null,null,null,null,"інші види кредитування",null,null,null,null,null,null,null,null,null,null,null,null,null,null,null,null,null,null,null,null,null,null,null,null,null,null,null,null,null,null,null,null,null,null,"за КВЕД",null,null,null,null,null,null,null,null,"64.62"]
["Середня кількість працівників1",null,null,null,null,null,null,null,null,null,null,null,null,null,null,null,null,null,"16"]
["Адреса, телефон",null,null,null,null,null,null,null,null,null,"08702 Київська обл., м.Обухів, вул. Миру,9, оф.181 а."]
["Одиниця виміру: тис. грн. без десяткового знака (окрім розділу IV Звіту про фінансові результати (Звіту про сукупний дохід) (форма N 2), грошові показники якого наводяться в гривнях з копійками)"]
["Складено (зробити позначку \"v\" у відповідній клітинці):"]
["за положеннями (стандартами) бухгалтерського обліку"]
["за міжнародними стандартами фінансової звітності",null,null,null,null,null,null,null,null,null,null,null,null,null,null,null,null,null,null,null,null,null,null,null,null,null,null,null,null,null,null,null,null,null,null,null,null,null,null,null,null,null,null,null,null,null,null,null,null,null,null,null,null,null,null,null,null,null,null,null,"V"]
[]
["Баланс (Звіт про фінансовий стан)"]
[null,null,null,null,null,null,null,null,null,null,null,null,null,null,null,null,null,null,null,null,null,null,null,null,null,"на",null,"31 грудня",null,null,null,null,null,null,null,null,null,null,"20",null,"15",null,"р."]
[null,null,null,null,null,null,null,null,null,null,null,null,null,null,null,null,null,null,null,null,null,null,null,null,null,null,null,null,null,null,null,null,null,null,null,null,null,null,null,null,null,null,"Форма N 1",null,null,null,null,null,null,null,"Код за ДКУД",null,null,null,null,null,null,null,null,1801001]
[]
["Актив",null,null,null,null,null,null,null,null,null,null,null,null,null,null,null,null,null,null,null,null,null,null,null,null,null,null,null,null,null,null,null,null,null,null,null,null,null,null,null,null,null,null,null,null,null,"Код рядка",null,null,null,"На початок звітного періоду",null,null,null,null,null,null,null,null,"На кінець звітного періоду"]
[1,null,null,null,null,null,null,null,null,null,null,null,null,null,null,null,null,null,null,null,null,null,null,null,null,null,null,null,null,null,null,null,null,null,null,null,null,null,null,null,null,null,null,null,null,null,2,null,null,null,3,null,null,null,null,null,null,null,null,4]
["I. Необоротні активи",null,null,null,null,null,null,null,null,null,null,null,null,null,null,null,null,null,null,null,null,null,null,null,null,null,null,null,null,null,null,null,null,null,null,null,null,null,null,null,null,null,null,null,null,null,1000]
["Нематеріальні активи",null,null,null,null,null,null,null,null,null,null,null,null,null,null,null,null,null,null,null,null,null,null,null,null,null,null,null,null,null,null,null,null,null,null,null,null,null,null,null,null,null,null,null,null,null,null,null,null,null,{"$f":"IF('Для розрахунків'!AY25:BG25>0,'Для розрахунків'!AY25:BG25,\"-\")","v":"-"},null,null,null,null,null,null,null,null,{"$f":"IF('Для розрахунків'!BH25:BP25>0,'Для розрахунків'!BH25:BP25,\"-\")","v":"-"}]
["первісна вартість",null,null,null,null,null,null,null,null,null,null,null,null,null,null,null,null,null,null,null,null,null,null,null,null,null,null,null,null,null,null,null,null,null,null,null,null,null,null,null,null,null,null,null,null,null,1001,null,null,null,{"$f":"IF('Для розрахунків'!AY26:BG26>0,'Для розрахунків'!AY26:BG26,\"-\")","v":"-"},null,null,null,null,null,null,null,null,{"$f":"IF('Для розрахунків'!BH26:BP26>0,'Для розрахунків'!BH26:BP26,\"-\")","v":"-"}]
["накопичена амортизація",null,null,null,null,null,null,null,null,null,null,null,null,null,null,null,null,null,null,null,null,null,null,null,null,null,null,null,null,null,null,null,null,null,null,null,null,null,null,null,null,null,null,null,null,null,1002,null,null,null,{"$f":"IF('Для розрахунків'!AY27:BG27>0,'Для розрахунків'!AY27:BG27,\"-\")","v":"-"},null,null,null,null,null,null,null,null,{"$f":"IF('Для розрахунків'!BH27:BP27>0,'Для розрахунків'!BH27:BP27,\"-\")","v":"-"}]
["Незавершені капітальні інвестиції",null,null,null,null,null,null,null,null,null,null,null,null,null,null,null,null,null,null,null,null,null,null,null,null,null,null,null,null,null,null,null,null,null,null,null,null,null,null,null,null,null,null,null,null,null,1005,null,null,null,{"$f":"IF('Для розрахунків'!AY28:BG28>0,'Для розрахунків'!AY28:BG28,\"-\")","v":"-"},null,null,null,null,null,null,null,null,{"$f":"IF('Для розрахунків'!BH28:BP28>0,'Для розрахунків'!BH28:BP28,\"-\")","v":"-"}]
["Основні засоби",null,null,null,null,null,null,null,null,null,null,null,null,null,null,null,null,null,null,null,null,null,null,null,null,null,null,null,null,null,null,null,null,null,null,null,null,null,null,null,null,null,null,null,null,null,"1010",null,null,null,{"$f":"IF('Для розрахунків'!AY29:BG29>0,'Для розрахунків'!AY29:BG29,\"-\")","v":140},null,null,null,null,null,null,null,null,{"$f":"IF('Для розрахунків'!BH29:BP29>0,'Для розрахунків'!BH29:BP29,\"-\")","v":146}]
["первісна вартість",null,null,null,null,null,null,null,null,null,null,null,null,null,null,null,null,null,null,null,null,null,null,null,null,null,null,null,null,null,null,null,null,null,null,null,null,null,null,null,null,null,null,null,null,null,1011,null,null,null,{"$f":"IF('Для розрахунків'!AY30:BG30>0,'Для розрахунків'!AY30:BG30,\"-\")","v":235},null,null,null,null,null,null,null,null,{"$f":"IF('Для розрахунків'!BH30:BP30>0,'Для розрахунків'!BH30:BP30,\"-\")","v":241}]
["знос",null,null,null,null,null,null,null,null,null,null,null,null,null,null,null,null,null,null,null,null,null,null,null,null,null,null,null,null,null,null,null,null,null,null,null,null,null,null,null,null,null,null,null,null,null,1012,null,null,null,{"$f":"IF('Для розрахунків'!AY31:BG31>0,'Для розрахунків'!AY31:BG31,\"-\")","v":95},null,null,null,null,null,null,null,null,{"$f":"IF('Для розрахунків'!BH31:BP31>0,'Для розрахунків'!BH31:BP31,\"-\")","v":95}]
["Інвестиційна нерухомість",null,null,null,null,null,null,null,null,null,null,null,null,null,null,null,null,null,null,null,null,null,null,null,null,null,null,null,null,null,null,null,null,null,null,null,null,null,null,null,null,null,null,null,null,null,1015,null,null,null,{"$f":"IF('Для розрахунків'!AY32:BG32>0,'Для розрахунків'!AY32:BG32,\"-\")","v":"-"},null,null,null,null,null,null,null,null,{"$f":"IF('Для розрахунків'!BH32:BP32>0,'Для розрахунків'!BH32:BP32,\"-\")","v":"-"}]
["   Первісна вартість інвестиційної нерухомості",null,null,null,null,null,null,null,null,null,null,null,null,null,null,null,null,null,null,null,null,null,null,null,null,null,null,null,null,null,null,null,null,null,null,null,null,null,null,null,null,null,null,null,null,null,"1016",null,null,null,{"$f":"IF('Для розрахунків'!AY33:BG33>0,'Для розрахунків'!AY33:BG33,\"-\")","v":"-"},null,null,null,null,null,null,null,null,{"$f":"IF('Для розрахунків'!BH33:BP33>0,'Для розрахунків'!BH33:BP33,\"-\")","v":"-"}]
["   Знос інвестиційної нерухомості",null,null,null,null,null,null,null,null,null,null,null,null,null,null,null,null,null,null,null,null,null,null,null,null,null,null,null,null,null,null,null,null,null,null,null,null,null,null,null,null,null,null,null,null,null,"1017",null,null,null,{"$f":"IF('Для розрахунків'!AY34:BG34>0,'Для розрахунків'!AY34:BG34,\"-\")","v":"-"},null,null,null,null,null,null,null,null,{"$f":"IF('Для розрахунків'!BH34:BP34>0,'Для розрахунків'!BH34:BP34,\"-\")","v":"-"}]
["Довгострокові біологічні активи",null,null,null,null,null,null,null,null,null,null,null,null,null,null,null,null,null,null,null,null,null,null,null,null,null,null,null,null,null,null,null,null,null,null,null,null,null,null,null,null,null,null,null,null,null,1020,null,null,null,{"$f":"IF('Для розрахунків'!AY35:BG35>0,'Для розрахунків'!AY35:BG35,\"-\")","v":"-"},null,null,null,null,null,null,null,null,{"$f":"IF('Для розрахунків'!BH35:BP35>0,'Для розрахунків'!BH35:BP35,\"-\")","v":"-"}]
["   Первісна вартість довгострокових біологічних активів",null,null,null,null,null,null,null,null,null,null,null,null,null,null,null,null,null,null,null,null,null,null,null,null,null,null,null,null,null,null,null,null,null,null,null,null,null,null,null,null,null,null,null,null,null,"1021",null,null,null,{"$f":"IF('Для розрахунків'!AY36:BG36>0,'Для розрахунків'!AY36:BG36,\"-\")","v":"-"},null,null,null,null,null,null,null,null,{"$f":"IF('Для розрахунків'!BH36:BP36>0,'Для розрахунків'!BH36:BP36,\"-\")","v":"-"}]
["   Накопичена амортизація довгострокових біологічних активів",null,null,null,null,null,null,null,null,null,null,null,null,null,null,null,null,null,null,null,null,null,null,null,null,null,null,null,null,null,null,null,null,null,null,null,null,null,null,null,null,null,null,null,null,null,"1022",null,null,null,{"$f":"IF('Для розрахунків'!AY37:BG37>0,'Для розрахунків'!AY37:BG37,\"-\")","v":"-"},null,null,null,null,null,null,null,null,{"$f":"IF('Для розрахунків'!BH37:BP37>0,'Для розрахунків'!BH37:BP37,\"-\")","v":"-"}]
["Довгострокові фінансові інвестиції:",null,null,null,null,null,null,null,null,null,null,null,null,null,null,null,null,null,null,null,null,null,null,null,null,null,null,null,null,null,null,null,null,null,null,null,null,null,null,null,null,null,null,null,null,null,1030]
["які обліковуються за методом участі в капіталі інших підприємств",null,null,null,null,null,null,null,null,null,null,null,null,null,null,null,null,null,null,null,null,null,null,null,null,null,null,null,null,null,null,null,null,null,null,null,null,null,null,null,null,null,null,null,null,null,null,null,null,null,{"$f":"IF('Для розрахунків'!AY39:BG39>0,'Для розрахунків'!AY39:BG39,\"-\")","v":"-"},null,null,null,null,null,null,null,null,{"$f":"IF('Для розрахунків'!BH39:BP39>0,'Для розрахунків'!BH39:BP39,\"-\")","v":"-"}]
["інші фінансові інвестиції",null,null,null,null,null,null,null,null,null,null,null,null,null,null,null,null,null,null,null,null,null,null,null,null,null,null,null,null,null,null,null,null,null,null,null,null,null,null,null,null,null,null,null,null,null,1035,null,null,null,{"$f":"IF('Для розрахунків'!AY40:BG40>0,'Для розрахунків'!AY40:BG40,\"-\")","v":"-"},null,null,null,null,null,null,null,null,{"$f":"IF('Для розрахунків'!BH40:BP40>0,'Для розрахунків'!BH40:BP40,\"-\")","v":"-"}]
["Довгострокова дебіторська заборгованість",null,null,null,null,null,null,null,null,null,null,null,null,null,null,null,null,null,null,null,null,null,null,null,null,null,null,null,null,null,null,null,null,null,null,null,null,null,null,null,null,null,null,null,null,null,1040,null,null,null,{"$f":"IF('Для розрахунків'!AY41:BG41>0,'Для розрахунків'!AY41:BG41,\"-\")","v":"-"},null,null,null,null,null,null,null,null,{"$f":"IF('Для розрахунків'!BH41:BP41>0,'Для розрахунків'!BH41:BP41,\"-\")","v":"-"}]
["Відстрочені податкові активи",null,null,null,null,null,null,null,null,null,null,null,null,null,null,null,null,null,null,null,null,null,null,null,null,null,null,null,null,null,null,null,null,null,null,null,null,null,null,null,null,null,null,null,null,null,1045,null,null,null,{"$f":"IF('Для розрахунків'!AY42:BG42>0,'Для розрахунків'!AY42:BG42,\"-\")","v":"-"},null,null,null,null,null,null,null,null,{"$f":"IF('Для розрахунків'!BH42:BP42>0,'Для розрахунків'!BH42:BP42,\"-\")","v":"-"}]
["Гудвіл",null,null,null,null,null,null,null,null,null,null,null,null,null,null,null,null,null,null,null,null,null,null,null,null,null,null,null,null,null,null,null,null,null,null,null,null,null,null,null,null,null,null,null,null,null,"1050",null,null,null,{"$f":"IF('Для розрахунків'!AY43:BG43>0,'Для розрахунків'!AY43:BG43,\"-\")","v":"-"},null,null,null,null,null,null,null,null,{"$f":"IF('Для розрахунків'!BH43:BP43>0,'Для розрахунків'!BH43:BP43,\"-\")","v":"-"}]
["Відстрочені аквізиційні витрати",null,null,null,null,null,null,null,null,null,null,null,null,null,null,null,null,null,null,null,null,null,null,null,null,null,null,null,null,null,null,null,null,null,null,null,null,null,null,null,null,null,null,null,null,null,"1060",null,null,null,{"$f":"IF('Для розрахунків'!AY44:BG44>0,'Для розрахунків'!AY44:BG44,\"-\")","v":"-"},null,null,null,null,null,null,null,null,{"$f":"IF('Для розрахунків'!BH44:BP44>0,'Для розрахунків'!BH44:BP44,\"-\")","v":"-"}]
["Залишок коштів у централізованих страхових резервних фондах",null,null,null,null,null,null,null,null,null,null,null,null,null,null,null,null,null,null,null,null,null,null,null,null,null,null,null,null,null,null,null,null,null,null,null,null,null,null,null,null,null,null,null,null,null,"1065",null,null,null,{"$f":"IF('Для розрахунків'!AY45:BG45>0,'Для розрахунків'!AY45:BG45,\"-\")","v":"-"},null,null,null,null,null,null,null,null,{"$f":"IF('Для розрахунків'!BH45:BP45>0,'Для розрахунків'!BH45:BP45,\"-\")","v":"-"}]
["Інші необоротні активи",null,null,null,null,null,null,null,null,null,null,null,null,null,null,null,null,null,null,null,null,null,null,null,null,null,null,null,null,null,null,null,null,null,null,null,null,null,null,null,null,null,null,null,null,null,1090,null,null,null,{"$f":"IF('Для розрахунків'!AY46:BG46>0,'Для розрахунків'!AY46:BG46,\"-\")","v":"-"},null,null,null,null,null,null,null,null,{"$f":"IF('Для розрахунків'!BH46:BP46>0,'Для розрахунків'!BH46:BP46,\"-\")","v":"-"}]
["Усього за розділом I",null,null,null,null,null,null,null,null,null,null,null,null,null,null,null,null,null,null,null,null,null,null,null,null,null,null,null,null,null,null,null,null,null,null,null,null,null,null,null,null,null,null,null,null,null,1095,null,null,null,{"$f":"IF('Для розрахунків'!AY47:BG47>0,'Для розрахунків'!AY47:BG47,\"-\")","v":140},null,null,null,null,null,null,null,null,{"$f":"IF('Для розрахунків'!BH47:BP47>0,'Для розрахунків'!BH47:BP47,\"-\")","v":146}]
["II. Оборотні активи",null,null,null,null,null,null,null,null,null,null,null,null,null,null,null,null,null,null,null,null,null,null,null,null,null,null,null,null,null,null,null,null,null,null,null,null,null,null,null,null,null,null,null,null,null,1100]
["Запаси",null,null,null,null,null,null,null,null,null,null,null,null,null,null,null,null,null,null,null,null,null,null,null,null,null,null,null,null,null,null,null,null,null,null,null,null,null,null,null,null,null,null,null,null,null,null,null,null,null,{"$f":"IF('Для розрахунків'!AY49:BG49>0,'Для розрахунків'!AY49:BG49,\"-\")","v":53},null,null,null,null,null,null,null,null,{"$f":"IF('Для розрахунків'!BH49:BP49>0,'Для розрахунків'!BH49:BP49,\"-\")","v":53}]
["Виробничі запаси",null,null,null,null,null,null,null,null,null,null,null,null,null,null,null,null,null,null,null,null,null,null,null,null,null,null,null,null,null,null,null,null,null,null,null,null,null,null,null,null,null,null,null,null,null,"1101",null,null,null,{"$f":"IF('Для розрахунків'!AY50:BG50>0,'Для розрахунків'!AY50:BG50,\"-\")","v":"-"},null,null,null,null,null,null,null,null,{"$f":"IF('Для розрахунків'!BH50:BP50>0,'Для розрахунків'!BH50:BP50,\"-\")","v":"-"}]
["Незавершене виробництво",null,null,null,null,null,null,null,null,null,null,null,null,null,null,null,null,null,null,null,null,null,null,null,null,null,null,null,null,null,null,null,null,null,null,null,null,null,null,null,null,null,null,null,null,null,"1102",null,null,null,{"$f":"IF('Для розрахунків'!AY51:BG51>0,'Для розрахунків'!AY51:BG51,\"-\")","v":"-"},null,null,null,null,null,null,null,null,{"$f":"IF('Для розрахунків'!BH51:BP51>0,'Для розрахунків'!BH51:BP51,\"-\")","v":"-"}]
["Готова продукція",null,null,null,null,null,null,null,null,null,null,null,null,null,null,null,null,null,null,null,null,null,null,null,null,null,null,null,null,null,null,null,null,null,null,null,null,null,null,null,null,null,null,null,null,null,"1103",null,null,null,{"$f":"IF('Для розрахунків'!AY52:BG52>0,'Для розрахунків'!AY52:BG52,\"-\")","v":"-"},null,null,null,null,null,null,null,null,{"$f":"IF('Для розрахунків'!BH52:BP52>0,'Для розрахунків'!BH52:BP52,\"-\")","v":"-"}]
["Товари",null,null,null,null,null,null,null,null,null,null,null,null,null,null,null,null,null,null,null,null,null,null,null,null,null,null,null,null,null,null,null,null,null,null,null,null,null,null,null,null,null,null,null,null,null,"1104",null,null,null,{"$f":"IF('Для розрахунків'!AY53:BG53>0,'Для розрахунків'!AY53:BG53,\"-\")","v":53},null,null,null,null,null,null,null,null,{"$f":"IF('Для розрахунків'!BH53:BP53>0,'Для розрахунків'!BH53:BP53,\"-\")","v":53}]
["Поточні біологічні активи",null,null,null,null,null,null,null,null,null,null,null,null,null,null,null,null,null,null,null,null,null,null,null,null,null,null,null,null,null,null,null,null,null,null,null,null,null,null,null,null,null,null,null,null,null,1110,null,null,null,{"$f":"IF('Для розрахунків'!AY54:BG54>0,'Для розрахунків'!AY54:BG54,\"-\")","v":"-"},null,null,null,null,null,null,null,null,{"$f":"IF('Для розрахунків'!BH54:BP54>0,'Для розрахунків'!BH54:BP54,\"-\")","v":"-"}]
["Депозити перестрахування",null,null,null,null,null,null,null,null,null,null,null,null,null,null,null,null,null,null,null,null,null,null,null,null,null,null,null,null,null,null,null,null,null,null,null,null,null,null,null,null,null,null,null,null,null,"1115",null,null,null,{"$f":"IF('Для розрахунків'!AY55:BG55>0,'Для розрахунків'!AY55:BG55,\"-\")","v":"-"},null,null,null,null,null,null,null,null,{"$f":"IF('Для розрахунків'!BH55:BP55>0,'Для розрахунків'!BH55:BP55,\"-\")","v":"-"}]
["Векселі одержані",null,null,null,null,null,null,null,null,null,null,null,null,null,null,null,null,null,null,null,null,null,null,null,null,null,null,null,null,null,null,null,null,null,null,null,null,null,null,null,null,null,null,null,null,null,"1120",null,null,null,{"$f":"IF('Для розрахунків'!AY56:BG56>0,'Для розрахунків'!AY56:BG56,\"-\")","v":"-"},null,null,null,null,null,null,null,null,{"$f":"IF('Для розрахунків'!BH56:BP56>0,'Для розрахунків'!BH56:BP56,\"-\")","v":"-"}]
["Дебіторська заборгованість за продукцію, товари, роботи, послуги",null,null,null,null,null,null,null,null,null,null,null,null,null,null,null,null,null,null,null,null,null,null,null,null,null,null,null,null,null,null,null,null,null,null,null,null,null,null,null,null,null,null,null,null,null,1125,null,null,null,{"$f":"IF('Для розрахунків'!AY57:BG57>0,'Для розрахунків'!AY57:BG57,\"-\")","v":"-"},null,null,null,null,null,null,null,null,{"$f":"IF('Для розрахунків'!BH57:BP57>0,'Для розрахунків'!BH57:BP57,\"-\")","v":"-"}]
["Дебіторська заборгованість за розрахунками:",null,null,null,null,null,null,null,null,null,null,null,null,null,null,null,null,null,null,null,null,null,null,null,null,null,null,null,null,null,null,null,null,null,null,null,null,null,null,null,null,null,null,null,null,null,1130]
["за виданими авансами",null,null,null,null,null,null,null,null,null,null,null,null,null,null,null,null,null,null,null,null,null,null,null,null,null,null,null,null,null,null,null,null,null,null,null,null,null,null,null,null,null,null,null,null,null,null,null,null,null,{"$f":"IF('Для розрахунків'!AY59:BG59>0,'Для розрахунків'!AY59:BG59,\"-\")","v":"-"},null,null,null,null,null,null,null,null,{"$f":"IF('Для розрахунків'!BH59:BP59>0,'Для розрахунків'!BH59:BP59,\"-\")","v":"-"}]
["з бюджетом",null,null,null,null,null,null,null,null,null,null,null,null,null,null,null,null,null,null,null,null,null,null,null,null,null,null,null,null,null,null,null,null,null,null,null,null,null,null,null,null,null,null,null,null,null,1135,null,null,null,{"$f":"IF('Для розрахунків'!AY60:BG60>0,'Для розрахунків'!AY60:BG60,\"-\")","v":192},null,null,null,null,null,null,null,null,{"$f":"IF('Для розрахунків'!BH60:BP60>0,'Для розрахунків'!BH60:BP60,\"-\")","v":198}]
["у тому числі з податку на прибуток",null,null,null,null,null,null,null,null,null,null,null,null,null,null,null,null,null,null,null,null,null,null,null,null,null,null,null,null,null,null,null,null,null,null,null,null,null,null,null,null,null,null,null,null,null,1136,null,null,null,{"$f":"IF('Для розрахунків'!AY61:BG61>0,'Для розрахунків'!AY61:BG61,\"-\")","v":"-"},null,null,null,null,null,null,null,null,{"$f":"IF('Для розрахунків'!BH61:BP61>0,'Для розрахунків'!BH61:BP61,\"-\")","v":"-"}]
["Дебіторська заборгованість за розрахунками з нарахованих доходів",null,null,null,null,null,null,null,null,null,null,null,null,null,null,null,null,null,null,null,null,null,null,null,null,null,null,null,null,null,null,null,null,null,null,null,null,null,null,null,null,null,null,null,null,null,"1140",null,null,null,{"$f":"IF('Для розрахунків'!AY62:BG62>0,'Для розрахунків'!AY62:BG62,\"-\")","v":"-"},null,null,null,null,null,null,null,null,{"$f":"IF('Для розрахунків'!BH62:BP62>0,'Для розрахунків'!BH62:BP62,\"-\")","v":"-"}]
["Дебіторська заборгованість за розрахунками із внутрішніх розрахунків",null,null,null,null,null,null,null,null,null,null,null,null,null,null,null,null,null,null,null,null,null,null,null,null,null,null,null,null,null,null,null,null,null,null,null,null,null,null,null,null,null,null,null,null,null,"1145",null,null,null,{"$f":"IF('Для розрахунків'!AY63:BG63>0,'Для розрахунків'!AY63:BG63,\"-\")","v":"-"},null,null,null,null,null,null,null,null,{"$f":"IF('Для розрахунків'!BH63:BP63>0,'Для розрахунків'!BH63:BP63,\"-\")","v":"-"}]
["Інша поточна дебіторська заборгованість",null,null,null,null,null,null,null,null,null,null,null,null,null,null,null,null,null,null,null,null,null,null,null,null,null,null,null,null,null,null,null,null,null,null,null,null,null,null,null,null,null,null,null,null,null,1155,null,null,null,{"$f":"IF('Для розрахунків'!AY64:BG64>0,'Для розрахунків'!AY64:BG64,\"-\")","v":1380},null,null,null,null,null,null,null,null,{"$f":"IF('Для розрахунків'!BH64:BP64>0,'Для розрахунків'!BH64:BP64,\"-\")","v":1415}]
["Поточні фінансові інвестиції",null,null,null,null,null,null,null,null,null,null,null,null,null,null,null,null,null,null,null,null,null,null,null,null,null,null,null,null,null,null,null,null,null,null,null,null,null,null,null,null,null,null,null,null,null,1160,null,null,null,{"$f":"IF('Для розрахунків'!AY65:BG65>0,'Для розрахунків'!AY65:BG65,\"-\")","v":"-"},null,null,null,null,null,null,null,null,{"$f":"IF('Для розрахунків'!BH65:BP65>0,'Для розрахунків'!BH65:BP65,\"-\")","v":"-"}]
["Гроші та їх еквіваленти",null,null,null,null,null,null,null,null,null,null,null,null,null,null,null,null,null,null,null,null,null,null,null,null,null,null,null,null,null,null,null,null,null,null,null,null,null,null,null,null,null,null,null,null,null,1165,null,null,null,{"$f":"IF('Для розрахунків'!AY66:BG66>0,'Для розрахунків'!AY66:BG66,\"-\")","v":253},null,null,null,null,null,null,null,null,{"$f":"IF('Для розрахунків'!BH66:BP66>0,'Для розрахунків'!BH66:BP66,\"-\")","v":267}]
["Готівка",null,null,null,null,null,null,null,null,null,null,null,null,null,null,null,null,null,null,null,null,null,null,null,null,null,null,null,null,null,null,null,null,null,null,null,null,null,null,null,null,null,null,null,null,null,"1166",null,null,null,{"$f":"IF('Для розрахунків'!AY67:BG67>0,'Для розрахунків'!AY67:BG67,\"-\")","v":174},null,null,null,null,null,null,null,null,{"$f":"IF('Для розрахунків'!BH67:BP67>0,'Для розрахунків'!BH67:BP67,\"-\")","v":118}]
["Рахунки в банках",null,null,null,null,null,null,null,null,null,null,null,null,null,null,null,null,null,null,null,null,null,null,null,null,null,null,null,null,null,null,null,null,null,null,null,null,null,null,null,null,null,null,null,null,null,"1167",null,null,null,{"$f":"IF('Для розрахунків'!AY68:BG68>0,'Для розрахунків'!AY68:BG68,\"-\")","v":109},null,null,null,null,null,null,null,null,{"$f":"IF('Для розрахунків'!BH68:BP68>0,'Для розрахунків'!BH68:BP68,\"-\")","v":149}]
["Витрати майбутніх періодів",null,null,null,null,null,null,null,null,null,null,null,null,null,null,null,null,null,null,null,null,null,null,null,null,null,null,null,null,null,null,null,null,null,null,null,null,null,null,null,null,null,null,null,null,null,1170,null,null,null,{"$f":"IF('Для розрахунків'!AY69:BG69>0,'Для розрахунків'!AY69:BG69,\"-\")","v":"-"},null,null,null,null,null,null,null,null,{"$f":"IF('Для розрахунків'!BH69:BP69>0,'Для розрахунків'!BH69:BP69,\"-\")","v":"-"}]
["Частка перестраховика у страхових резервах",null,null,null,null,null,null,null,null,null,null,null,null,null,null,null,null,null,null,null,null,null,null,null,null,null,null,null,null,null,null,null,null,null,null,null,null,null,null,null,null,null,null,null,null,null,"1180",null,null,null,{"$f":"IF('Для розрахунків'!AY70:BG70>0,'Для розрахунків'!AY70:BG70,\"-\")","v":"-"},null,null,null,null,null,null,null,null,{"$f":"IF('Для розрахунків'!BH70:BP70>0,'Для розрахунків'!BH70:BP70,\"-\")","v":"-"}]
["у тому числі в:\nрезервах довгострокових зобов'язань",null,null,null,null,null,null,null,null,null,null,null,null,null,null,null,null,null,null,null,null,null,null,null,null,null,null,null,null,null,null,null,null,null,null,null,null,null,null,null,null,null,null,null,null,null,"1181",null,null,null,{"$f":"IF('Для розрахунків'!AY71:BG71>0,'Для розрахунків'!AY71:BG71,\"-\")","v":"-"},null,null,null,null,null,null,null,null,{"$f":"IF('Для розрахунків'!BH71:BP71>0,'Для розрахунків'!BH71:BP71,\"-\")","v":"-"}]
["резервах збитків або резервах належних виплат",null,null,null,null,null,null,null,null,null,null,null,null,null,null,null,null,null,null,null,null,null,null,null,null,null,null,null,null,null,null,null,null,null,null,null,null,null,null,null,null,null,null,null,null,null,"1182",null,null,null,{"$f":"IF('Для розрахунків'!AY72:BG72>0,'Для розрахунків'!AY72:BG72,\"-\")","v":"-"},null,null,null,null,null,null,null,null,{"$f":"IF('Для розрахунків'!BH72:BP72>0,'Для розрахунків'!BH72:BP72,\"-\")","v":"-"}]
["резервах незароблених премій",null,null,null,null,null,null,null,null,null,null,null,null,null,null,null,null,null,null,null,null,null,null,null,null,null,null,null,null,null,null,null,null,null,null,null,null,null,null,null,null,null,null,null,null,null,"1183",null,null,null,{"$f":"IF('Для розрахунків'!AY73:BG73>0,'Для розрахунків'!AY73:BG73,\"-\")","v":"-"},null,null,null,null,null,null,null,null,{"$f":"IF('Для розрахунків'!BH73:BP73>0,'Для розрахунків'!BH73:BP73,\"-\")","v":"-"}]
["інших страхових резервах",null,null,null,null,null,null,null,null,null,null,null,null,null,null,null,null,null,null,null,null,null,null,null,null,null,null,null,null,null,null,null,null,null,null,null,null,null,null,null,null,null,null,null,null,null,"1184",null,null,null,{"$f":"IF('Для розрахунків'!AY74:BG74>0,'Для розрахунків'!AY74:BG74,\"-\")","v":"-"},null,null,null,null,null,null,null,null,{"$f":"IF('Для розрахунків'!BH74:BP74>0,'Для розрахунків'!BH74:BP74,\"-\")","v":"-"}]
["Інші оборотні активи",null,null,null,null,null,null,null,null,null,null,null,null,null,null,null,null,null,null,null,null,null,null,null,null,null,null,null,null,null,null,null,null,null,null,null,null,null,null,null,null,null,null,null,null,null,1190,null,null,null,{"$f":"IF('Для розрахунків'!AY75:BG75>0,'Для розрахунків'!AY75:BG75,\"-\")","v":"-"},null,null,null,null,null,null,null,null,{"$f":"IF('Для розрахунків'!BH75:BP75>0,'Для розрахунків'!BH75:BP75,\"-\")","v":"-"}]
["Усього за розділом II",null,null,null,null,null,null,null,null,null,null,null,null,null,null,null,null,null,null,null,null,null,null,null,null,null,null,null,null,null,null,null,null,null,null,null,null,null,null,null,null,null,null,null,null,null,1195,null,null,null,{"$f":"IF('Для розрахунків'!AY76:BG76>0,'Для розрахунків'!AY76:BG76,\"-\")","v":1878},null,null,null,null,null,null,null,null,{"$f":"IF('Для розрахунків'!BH76:BP76>0,'Для розрахунків'!BH76:BP76,\"-\")","v":1933}]
["III. Необоротні активи, утримувані для продажу, та групи вибуття",null,null,null,null,null,null,null,null,null,null,null,null,null,null,null,null,null,null,null,null,null,null,null,null,null,null,null,null,null,null,null,null,null,null,null,null,null,null,null,null,null,null,null,null,null,1200,null,null,null,{"$f":"IF('Для розрахунків'!AY77:BG77>0,'Для розрахунків'!AY77:BG77,\"-\")","v":"-"},null,null,null,null,null,null,null,null,{"$f":"IF('Для розрахунків'!BH77:BP77>0,'Для розрахунків'!BH77:BP77,\"-\")","v":"-"}]
["Баланс",null,null,null,null,null,null,null,null,null,null,null,null,null,null,null,null,null,null,null,null,null,null,null,null,null,null,null,null,null,null,null,null,null,null,null,null,null,null,null,null,null,null,null,null,null,1300,null,null,null,{"$f":"IF('Для розрахунків'!AY78:BG78>0,'Для розрахунків'!AY78:BG78,\"-\")","v":2018},null,null,null,null,null,null,null,null,{"$f":"IF('Для розрахунків'!BH78:BP78>0,'Для розрахунків'!BH78:BP78,\"-\")","v":2079}]
[]
["Пасив",null,null,null,null,null,null,null,null,null,null,null,null,null,null,null,null,null,null,null,null,null,null,null,null,null,null,null,null,null,null,null,null,null,null,null,null,null,null,null,null,null,null,null,null,null,"Код\nрядка",null,null,null,"На початок звітного періоду",null,null,null,null,null,null,null,null,"На кінець звітного періоду"]
[]
[1,null,null,null,null,null,null,null,null,null,null,null,null,null,null,null,null,null,null,null,null,null,null,null,null,null,null,null,null,null,null,null,null,null,null,null,null,null,null,null,null,null,null,null,null,null,2,null,null,null,3,null,null,null,null,null,null,null,null,4]
["I. Власний капітал",null,null,null,null,null,null,null,null,null,null,null,null,null,null,null,null,null,null,null,null,null,null,null,null,null,null,null,null,null,null,null,null,null,null,null,null,null,null,null,null,null,null,null,null,null,1400]
["Зареєстрований (пайовий) капітал",null,null,null,null,null,null,null,null,null,null,null,null,null,null,null,null,null,null,null,null,null,null,null,null,null,null,null,null,null,null,null,null,null,null,null,null,null,null,null,null,null,null,null,null,null,null,null,null,null,{"$f":"IF('Для розрахунків'!AY84:BG84>0,'Для розрахунків'!AY84:BG84,\"-\")","v":1310},null,null,null,null,null,null,null,null,{"$f":"IF('Для розрахунків'!BH84:BP84>0,'Для розрахунків'!BH84:BP84,\"-\")","v":1310}]
["Внески до незареєстрованого статутного капіталу",null,null,null,null,null,null,null,null,null,null,null,null,null,null,null,null,null,null,null,null,null,null,null,null,null,null,null,null,null,null,null,null,null,null,null,null,null,null,null,null,null,null,null,null,null,"1401",null,null,null,{"$f":"IF('Для розрахунків'!AY85:BG85>0,'Для розрахунків'!AY85:BG85,\"-\")","v":"-"},null,null,null,null,null,null,null,null,{"$f":"IF('Для розрахунків'!BH85:BP85>0,'Для розрахунків'!BH85:BP85,\"-\")","v":"-"}]
["Капітал у дооцінках",null,null,null,null,null,null,null,null,null,null,null,null,null,null,null,null,null,null,null,null,null,null,null,null,null,null,null,null,null,null,null,null,null,null,null,null,null,null,null,null,null,null,null,null,null,1405,null,null,null,{"$f":"IF('Для розрахунків'!AY86:BG86>0,'Для розрахунків'!AY86:BG86,\"-\")","v":"-"},null,null,null,null,null,null,null,null,{"$f":"IF('Для розрахунків'!BH86:BP86>0,'Для розрахунків'!BH86:BP86,\"-\")","v":"-"}]
["Додатковий капітал",null,null,null,null,null,null,null,null,null,null,null,null,null,null,null,null,null,null,null,null,null,null,null,null,null,null,null,null,null,null,null,null,null,null,null,null,null,null,null,null,null,null,null,null,null,1410,null,null,null,{"$f":"IF('Для розрахунків'!AY87:BG87>0,'Для розрахунків'!AY87:BG87,\"-\")","v":"-"},null,null,null,null,null,null,null,null,{"$f":"IF('Для розрахунків'!BH87:BP87>0,'Для розрахунків'!BH87:BP87,\"-\")","v":"-"}]
["Емісійний дохід",null,null,null,null,null,null,null,null,null,null,null,null,null,null,null,null,null,null,null,null,null,null,null,null,null,null,null,null,null,null,null,null,null,null,null,null,null,null,null,null,null,null,null,null,null,"1411",null,null,null,{"$f":"IF('Для розрахунків'!AY88:BG88>0,'Для розрахунків'!AY88:BG88,\"-\")","v":"-"},null,null,null,null,null,null,null,null,{"$f":"IF('Для розрахунків'!BH88:BP88>0,'Для розрахунків'!BH88:BP88,\"-\")","v":"-"}]
["Накопичені курсові різниці",null,null,null,null,null,null,null,null,null,null,null,null,null,null,null,null,null,null,null,null,null,null,null,null,null,null,null,null,null,null,null,null,null,null,null,null,null,null,null,null,null,null,null,null,null,"1412",null,null,null,{"$f":"IF('Для розрахунків'!AY89:BG89>0,'Для розрахунків'!AY89:BG89,\"-\")","v":"-"},null,null,null,null,null,null,null,null,{"$f":"IF('Для розрахунків'!BH89:BP89>0,'Для розрахунків'!BH89:BP89,\"-\")","v":"-"}]
["Резервний капітал",null,null,null,null,null,null,null,null,null,null,null,null,null,null,null,null,null,null,null,null,null,null,null,null,null,null,null,null,null,null,null,null,null,null,null,null,null,null,null,null,null,null,null,null,null,1415,null,null,null,{"$f":"IF('Для розрахунків'!AY90:BG90>0,'Для розрахунків'!AY90:BG90,\"-\")","v":"8"},null,null,null,null,null,null,null,null,{"$f":"IF('Для розрахунків'!BH90:BP90>0,'Для розрахунків'!BH90:BP90,\"-\")","v":"8"}]
["Нерозподілений прибуток (непокритий збиток)",null,null,null,null,null,null,null,null,null,null,null,null,null,null,null,null,null,null,null,null,null,null,null,null,null,null,null,null,null,null,null,null,null,null,null,null,null,null,null,null,null,null,null,null,null,1420,null,null,null,{"$f":"IF('Для розрахунків'!AZ91<0,\"(\",\" \")","v":" "},{"$f":"IF('Для розрахунків'!AZ91:BF91<>0,ABS('Для розрахунків'!AZ91:BF91),\"-\")","v":674},null,null,null,null,null,null,{"$f":"IF('Для розрахунків'!AZ91<0,\")\",\" \")","v":" "},{"$f":"IF('Для розрахунків'!BI91<0,\"(\",\" \")","v":" "},{"$f":"IF('Для розрахунків'!BI91:BO91<>0,ABS('Для розрахунків'!BI91:BO91),\"-\")","v":729},null,null,null,null,null,null,{"$f":"IF('Для розрахунків'!BI91<0,\")\",\" \")","v":" "}]
["Неоплачений капітал",null,null,null,null,null,null,null,null,null,null,null,null,null,null,null,null,null,null,null,null,null,null,null,null,null,null,null,null,null,null,null,null,null,null,null,null,null,null,null,null,null,null,null,null,null,1425,null,null,null,"(",null,{"$f":"IF('Для розрахунків'!BA92:BE92>0,'Для розрахунків'!BA92:BE92,\"-\")","v":"-"},null,null,null,null,")",null,"(",null,{"$f":"IF('Для розрахунків'!BJ92:BN92>0,'Для розрахунків'!BJ92:BN92,\"-\")","v":"-"},null,null,null,null,")"]
["Вилучений капітал",null,null,null,null,null,null,null,null,null,null,null,null,null,null,null,null,null,null,null,null,null,null,null,null,null,null,null,null,null,null,null,null,null,null,null,null,null,null,null,null,null,null,null,null,null,1430,null,null,null,"(",null,{"$f":"IF('Для розрахунків'!BA93:BE93>0,'Для розрахунків'!BA93:BE93,\"-\")","v":"-"},null,null,null,null,")",null,"(",null,{"$f":"IF('Для розрахунків'!BJ93:BN93>0,'Для розрахунків'!BJ93:BN93,\"-\")","v":"-"},null,null,null,null,")"]
["Інші резерви",null,null,null,null,null,null,null,null,null,null,null,null,null,null,null,null,null,null,null,null,null,null,null,null,null,null,null,null,null,null,null,null,null,null,null,null,null,null,null,null,null,null,null,null,null,"1435",null,null,null,{"$f":"IF('Для розрахунків'!AY94:BG94>0,'Для розрахунків'!AY94:BG94,\"-\")","v":"-"},null,null,null,null,null,null,null,null,{"$f":"IF('Для розрахунків'!BH94:BP94>0,'Для розрахунків'!BH94:BP94,\"-\")","v":"-"}]
["Усього за розділом I",null,null,null,null,null,null,null,null,null,null,null,null,null,null,null,null,null,null,null,null,null,null,null,null,null,null,null,null,null,null,null,null,null,null,null,null,null,null,null,null,null,null,null,null,null,1495,null,null,null,{"$f":"IF('Для розрахунків'!AY95:BG95>0,'Для розрахунків'!AY95:BG95,\"-\")","v":1992},null,null,null,null,null,null,null,null,{"$f":"IF('Для розрахунків'!BH95:BP95>0,'Для розрахунків'!BH95:BP95,\"-\")","v":2047}]
["II. Довгострокові зобов'язання і забезпечення",null,null,null,null,null,null,null,null,null,null,null,null,null,null,null,null,null,null,null,null,null,null,null,null,null,null,null,null,null,null,null,null,null,null,null,null,null,null,null,null,null,null,null,null,null,1500]
["Відстрочені податкові зобов'язання",null,null,null,null,null,null,null,null,null,null,null,null,null,null,null,null,null,null,null,null,null,null,null,null,null,null,null,null,null,null,null,null,null,null,null,null,null,null,null,null,null,null,null,null,null,null,null,null,null,{"$f":"IF('Для розрахунків'!AY97:BG97>0,'Для розрахунків'!AY97:BG97,\"-\")","v":"-"},null,null,null,null,null,null,null,null,{"$f":"IF('Для розрахунків'!BH97:BP97>0,'Для розрахунків'!BH97:BP97,\"-\")","v":"-"}]
["Пенсійні зобов'язання",null,null,null,null,null,null,null,null,null,null,null,null,null,null,null,null,null,null,null,null,null,null,null,null,null,null,null,null,null,null,null,null,null,null,null,null,null,null,null,null,null,null,null,null,null,"1505",null,null,null,{"$f":"IF('Для розрахунків'!AY98:BG98>0,'Для розрахунків'!AY98:BG98,\"-\")","v":"-"},null,null,null,null,null,null,null,null,{"$f":"IF('Для розрахунків'!BH98:BP98>0,'Для розрахунків'!BH98:BP98,\"-\")","v":"-"}]
["Довгострокові кредити банків",null,null,null,null,null,null,null,null,null,null,null,null,null,null,null,null,null,null,null,null,null,null,null,null,null,null,null,null,null,null,null,null,null,null,null,null,null,null,null,null,null,null,null,null,null,1510,null,null,null,{"$f":"IF('Для розрахунків'!AY99:BG99>0,'Для розрахунків'!AY99:BG99,\"-\")","v":"-"},null,null,null,null,null,null,null,null,{"$f":"IF('Для розрахунків'!BH99:BP99>0,'Для розрахунків'!BH99:BP99,\"-\")","v":"-"}]
["Інші довгострокові зобов'язання",null,null,null,null,null,null,null,null,null,null,null,null,null,null,null,null,null,null,null,null,null,null,null,null,null,null,null,null,null,null,null,null,null,null,null,null,null,null,null,null,null,null,null,null,null,1515,null,null,null,{"$f":"IF('Для розрахунків'!AY100:BG100>0,'Для розрахунків'!AY100:BG100,\"-\")","v":"-"},null,null,null,null,null,null,null,null,{"$f":"IF('Для розрахунків'!BH100:BP100>0,'Для розрахунків'!BH100:BP100,\"-\")","v":"-"}]
["Довгострокові забезпечення",null,null,null,null,null,null,null,null,null,null,null,null,null,null,null,null,null,null,null,null,null,null,null,null,null,null,null,null,null,null,null,null,null,null,null,null,null,null,null,null,null,null,null,null,null,1520,null,null,null,{"$f":"IF('Для розрахунків'!AY101:BG101>0,'Для розрахунків'!AY101:BG101,\"-\")","v":"-"},null,null,null,null,null,null,null,null,{"$f":"IF('Для розрахунків'!BH101:BP101>0,'Для розрахунків'!BH101:BP101,\"-\")","v":"-"}]
["Довгострокові забезпечення витрат персоналу",null,null,null,null,null,null,null,null,null,null,null,null,null,null,null,null,null,null,null,null,null,null,null,null,null,null,null,null,null,null,null,null,null,null,null,null,null,null,null,null,null,null,null,null,null,"1521",null,null,null,{"$f":"IF('Для розрахунків'!AY102:BG102>0,'Для розрахунків'!AY102:BG102,\"-\")","v":"-"},null,null,null,null,null,null,null,null,{"$f":"IF('Для розрахунків'!BH102:BP102>0,'Для розрахунків'!BH102:BP102,\"-\")","v":"-"}]
["Цільове фінансування",null,null,null,null,null,null,null,null,null,null,null,null,null,null,null,null,null,null,null,null,null,null,null,null,null,null,null,null,null,null,null,null,null,null,null,null,null,null,null,null,null,null,null,null,null,1525,null,null,null,{"$f":"IF('Для розрахунків'!AY103:BG103>0,'Для розрахунків'!AY103:BG103,\"-\")","v":"-"},null,null,null,null,null,null,null,null,{"$f":"IF('Для розрахунків'!BH103:BP103>0,'Для розрахунків'!BH103:BP103,\"-\")","v":"-"}]
["Благодійна допомога",null,null,null,null,null,null,null,null,null,null,null,null,null,null,null,null,null,null,null,null,null,null,null,null,null,null,null,null,null,null,null,null,null,null,null,null,null,null,null,null,null,null,null,null,null,"1526",null,null,null,{"$f":"IF('Для розрахунків'!AY104:BG104>0,'Для розрахунків'!AY104:BG104,\"-\")","v":"-"},null,null,null,null,null,null,null,null,{"$f":"IF('Для розрахунків'!BH104:BP104>0,'Для розрахунків'!BH104:BP104,\"-\")","v":"-"}]
["Страхові резерви",null,null,null,null,null,null,null,null,null,null,null,null,null,null,null,null,null,null,null,null,null,null,null,null,null,null,null,null,null,null,null,null,null,null,null,null,null,null,null,null,null,null,null,null,null,"1530",null,null,null,{"$f":"IF('Для розрахунків'!AY105:BG105>0,'Для розрахунків'!AY105:BG105,\"-\")","v":"-"},null,null,null,null,null,null,null,null,{"$f":"IF('Для розрахунків'!BH105:BP105>0,'Для розрахунків'!BH105:BP105,\"-\")","v":"-"}]
["у тому числі:\nрезерв довгострокових зобов'язань",null,null,null,null,null,null,null,null,null,null,null,null,null,null,null,null,null,null,null,null,null,null,null,null,null,null,null,null,null,null,null,null,null,null,null,null,null,null,null,null,null,null,null,null,null,"1531",null,null,null,{"$f":"IF('Для розрахунків'!AY106:BG106>0,'Для розрахунків'!AY106:BG106,\"-\")","v":"-"},null,null,null,null,null,null,null,null,{"$f":"IF('Для розрахунків'!BH106:BP106>0,'Для розрахунків'!BH106:BP106,\"-\")","v":"-"}]
["резерв збитків або резерв належних виплат",null,null,null,null,null,null,null,null,null,null,null,null,null,null,null,null,null,null,null,null,null,null,null,null,null,null,null,null,null,null,null,null,null,null,null,null,null,null,null,null,null,null,null,null,null,"1532",null,null,null,{"$f":"IF('Для розрахунків'!AY107:BG107>0,'Для розрахунків'!AY107:BG107,\"-\")","v":"-"},null,null,null,null,null,null,null,null,{"$f":"IF('Для розрахунків'!BH107:BP107>0,'Для розрахунків'!BH107:BP107,\"-\")","v":"-"}]
["резерв незароблених премій",null,null,null,null,null,null,null,null,null,null,null,null,null,null,null,null,null,null,null,null,null,null,null,null,null,null,null,null,null,null,null,null,null,null,null,null,null,null,null,null,null,null,null,null,null,"1533",null,null,null,{"$f":"IF('Для розрахунків'!AY108:BG108>0,'Для розрахунків'!AY108:BG108,\"-\")","v":"-"},null,null,null,null,null,null,null,null,{"$f":"IF('Для розрахунків'!BH108:BP108>0,'Для розрахунків'!BH108:BP108,\"-\")","v":"-"}]
["інші страхові резерви",null,null,null,null,null,null,null,null,null,null,null,null,null,null,null,null,null,null,null,null,null,null,null,null,null,null,null,null,null,null,null,null,null,null,null,null,null,null,null,null,null,null,null,null,null,"1534",null,null,null,{"$f":"IF('Для розрахунків'!AY109:BG109>0,'Для розрахунків'!AY109:BG109,\"-\")","v":"-"},null,null,null,null,null,null,null,null,{"$f":"IF('Для розрахунків'!BH109:BP109>0,'Для розрахунків'!BH109:BP109,\"-\")","v":"-"}]
["Інвестиційні контракти",null,null,null,null,null,null,null,null,null,null,null,null,null,null,null,null,null,null,null,null,null,null,null,null,null,null,null,null,null,null,null,null,null,null,null,null,null,null,null,null,null,null,null,null,null,"1535",null,null,null,{"$f":"IF('Для розрахунків'!AY110:BG110>0,'Для розрахунків'!AY110:BG110,\"-\")","v":"-"},null,null,null,null,null,null,null,null,{"$f":"IF('Для розрахунків'!BH110:BP110>0,'Для розрахунків'!BH110:BP110,\"-\")","v":"-"}]
["Призовий фонд",null,null,null,null,null,null,null,null,null,null,null,null,null,null,null,null,null,null,null,null,null,null,null,null,null,null,null,null,null,null,null,null,null,null,null,null,null,null,null,null,null,null,null,null,null,"1540",null,null,null,{"$f":"IF('Для розрахунків'!AY111:BG111>0,'Для розрахунків'!AY111:BG111,\"-\")","v":"-"},null,null,null,null,null,null,null,null,{"$f":"IF('Для розрахунків'!BH111:BP111>0,'Для розрахунків'!BH111:BP111,\"-\")","v":"-"}]
["Резерв на виплату джек-поту",null,null,null,null,null,null,null,null,null,null,null,null,null,null,null,null,null,null,null,null,null,null,null,null,null,null,null,null,null,null,null,null,null,null,null,null,null,null,null,null,null,null,null,null,null,"1545",null,null,null,{"$f":"IF('Для розрахунків'!AY112:BG112>0,'Для розрахунків'!AY112:BG112,\"-\")","v":"-"},null,null,null,null,null,null,null,null,{"$f":"IF('Для розрахунків'!BH112:BP112>0,'Для розрахунків'!BH112:BP112,\"-\")","v":"-"}]
["Усього за розділом II",null,null,null,null,null,null,null,null,null,null,null,null,null,null,null,null,null,null,null,null,null,null,null,null,null,null,null,null,null,null,null,null,null,null,null,null,null,null,null,null,null,null,null,null,null,1595,null,null,null,{"$f":"IF('Для розрахунків'!AY113:BG113>0,'Для розрахунків'!AY113:BG113,\"-\")","v":"-"},null,null,null,null,null,null,null,null,{"$f":"IF('Для розрахунків'!BH113:BP113>0,'Для розрахунків'!BH113:BP113,\"-\")","v":"-"}]
["IІІ. Поточні зобов'язання і забезпечення",null,null,null,null,null,null,null,null,null,null,null,null,null,null,null,null,null,null,null,null,null,null,null,null,null,null,null,null,null,null,null,null,null,null,null,null,null,null,null,null,null,null,null,null,null,1600]
["Короткострокові кредити банків",null,null,null,null,null,null,null,null,null,null,null,null,null,null,null,null,null,null,null,null,null,null,null,null,null,null,null,null,null,null,null,null,null,null,null,null,null,null,null,null,null,null,null,null,null,null,null,null,null,{"$f":"IF('Для розрахунків'!AY115:BG115>0,'Для розрахунків'!AY115:BG115,\"-\")","v":"-"},null,null,null,null,null,null,null,null,{"$f":"IF('Для розрахунків'!BH115:BP115>0,'Для розрахунків'!BH115:BP115,\"-\")","v":"-"}]
["Векселі видані",null,null,null,null,null,null,null,null,null,null,null,null,null,null,null,null,null,null,null,null,null,null,null,null,null,null,null,null,null,null,null,null,null,null,null,null,null,null,null,null,null,null,null,null,null,"1605",null,null,null,{"$f":"IF('Для розрахунків'!AY116:BG116>0,'Для розрахунків'!AY116:BG116,\"-\")","v":"-"},null,null,null,null,null,null,null,null,{"$f":"IF('Для розрахунків'!BH116:BP116>0,'Для розрахунків'!BH116:BP116,\"-\")","v":"-"}]
["Поточна кредиторська заборгованість за:",null,null,null,null,null,null,null,null,null,null,null,null,null,null,null,null,null,null,null,null,null,null,null,null,null,null,null,null,null,null,null,null,null,null,null,null,null,null,null,null,null,null,null,null,null," "]
["довгостроковими зобов'язаннями",null,null,null,null,null,null,null,null,null,null,null,null,null,null,null,null,null,null,null,null,null,null,null,null,null,null,null,null,null,null,null,null,null,null,null,null,null,null,null,null,null,null,null,null,null,"1610",null,null,null,{"$f":"IF('Для розрахунків'!AY118:BG118>0,'Для розрахунків'!AY118:BG118,\"-\")","v":"-"},null,null,null,null,null,null,null,null,{"$f":"IF('Для розрахунків'!BH118:BP118>0,'Для розрахунків'!BH118:BP118,\"-\")","v":"-"}]
["товари, роботи, послуги",null,null,null,null,null,null,null,null,null,null,null,null,null,null,null,null,null,null,null,null,null,null,null,null,null,null,null,null,null,null,null,null,null,null,null,null,null,null,null,null,null,null,null,null,null,1615,null,null,null,{"$f":"IF('Для розрахунків'!AY119:BG119>0,'Для розрахунків'!AY119:BG119,\"-\")","v":"-"},null,null,null,null,null,null,null,null,{"$f":"IF('Для розрахунків'!BH119:BP119>0,'Для розрахунків'!BH119:BP119,\"-\")","v":"-"}]
["розрахунками з бюджетом",null,null,null,null,null,null,null,null,null,null,null,null,null,null,null,null,null,null,null,null,null,null,null,null,null,null,null,null,null,null,null,null,null,null,null,null,null,null,null,null,null,null,null,null,null,1620,null,null,null,{"$f":"IF('Для розрахунків'!AY120:BG120>0,'Для розрахунків'!AY120:BG120,\"-\")","v":10},null,null,null,null,null,null,null,null,{"$f":"IF('Для розрахунків'!BH120:BP120>0,'Для розрахунків'!BH120:BP120,\"-\")","v":16}]
["у тому числі з податку на прибуток",null,null,null,null,null,null,null,null,null,null,null,null,null,null,null,null,null,null,null,null,null,null,null,null,null,null,null,null,null,null,null,null,null,null,null,null,null,null,null,null,null,null,null,null,null,1621,null,null,null,{"$f":"IF('Для розрахунків'!AY121:BG121>0,'Для розрахунків'!AY121:BG121,\"-\")","v":10},null,null,null,null,null,null,null,null,{"$f":"IF('Для розрахунків'!BH121:BP121>0,'Для розрахунків'!BH121:BP121,\"-\")","v":16}]
["розрахунками зі страхування",null,null,null,null,null,null,null,null,null,null,null,null,null,null,null,null,null,null,null,null,null,null,null,null,null,null,null,null,null,null,null,null,null,null,null,null,null,null,null,null,null,null,null,null,null,1625,null,null,null,{"$f":"IF('Для розрахунків'!AY122:BG122>0,'Для розрахунків'!AY122:BG122,\"-\")","v":"-"},null,null,null,null,null,null,null,null,{"$f":"IF('Для розрахунків'!BH122:BP122>0,'Для розрахунків'!BH122:BP122,\"-\")","v":"-"}]
["розрахунками з оплати праці",null,null,null,null,null,null,null,null,null,null,null,null,null,null,null,null,null,null,null,null,null,null,null,null,null,null,null,null,null,null,null,null,null,null,null,null,null,null,null,null,null,null,null,null,null,1630,null,null,null,{"$f":"IF('Для розрахунків'!AY123:BG123>0,'Для розрахунків'!AY123:BG123,\"-\")","v":16},null,null,null,null,null,null,null,null,{"$f":"IF('Для розрахунків'!BH123:BP123>0,'Для розрахунків'!BH123:BP123,\"-\")","v":16}]
["Поточна кредиторська заборгованість за одержаними авансами",null,null,null,null,null,null,null,null,null,null,null,null,null,null,null,null,null,null,null,null,null,null,null,null,null,null,null,null,null,null,null,null,null,null,null,null,null,null,null,null,null,null,null,null,null,"1635",null,null,null,{"$f":"IF('Для розрахунків'!AY124:BG124>0,'Для розрахунків'!AY124:BG124,\"-\")","v":"-"},null,null,null,null,null,null,null,null,{"$f":"IF('Для розрахунків'!BH124:BP124>0,'Для розрахунків'!BH124:BP124,\"-\")","v":"-"}]
["Поточна кредиторська заборгованість за розрахунками з учасниками",null,null,null,null,null,null,null,null,null,null,null,null,null,null,null,null,null,null,null,null,null,null,null,null,null,null,null,null,null,null,null,null,null,null,null,null,null,null,null,null,null,null,null,null,null,"1640",null,null,null,{"$f":"IF('Для розрахунків'!AY125:BG125>0,'Для розрахунків'!AY125:BG125,\"-\")","v":"-"},null,null,null,null,null,null,null,null,{"$f":"IF('Для розрахунків'!BH125:BP125>0,'Для розрахунків'!BH125:BP125,\"-\")","v":"-"}]
["Поточна кредиторська заборгованість із внутрішніх розрахунків",null,null,null,null,null,null,null,null,null,null,null,null,null,null,null,null,null,null,null,null,null,null,null,null,null,null,null,null,null,null,null,null,null,null,null,null,null,null,null,null,null,null,null,null,null,"1645",null,null,null,{"$f":"IF('Для розрахунків'!AY126:BG126>0,'Для розрахунків'!AY126:BG126,\"-\")","v":"-"},null,null,null,null,null,null,null,null,{"$f":"IF('Для розрахунків'!BH126:BP126>0,'Для розрахунків'!BH126:BP126,\"-\")","v":"-"}]
["Поточна кредиторська заборгованість за страховою діяльністю",null,null,null,null,null,null,null,null,null,null,null,null,null,null,null,null,null,null,null,null,null,null,null,null,null,null,null,null,null,null,null,null,null,null,null,null,null,null,null,null,null,null,null,null,null,"1650",null,null,null,{"$f":"IF('Для розрахунків'!AY127:BG127>0,'Для розрахунків'!AY127:BG127,\"-\")","v":"-"},null,null,null,null,null,null,null,null,{"$f":"IF('Для розрахунків'!BH127:BP127>0,'Для розрахунків'!BH127:BP127,\"-\")","v":"-"}]
["Поточні забезпечення",null,null,null,null,null,null,null,null,null,null,null,null,null,null,null,null,null,null,null,null,null,null,null,null,null,null,null,null,null,null,null,null,null,null,null,null,null,null,null,null,null,null,null,null,null,1660,null,null,null,{"$f":"IF('Для розрахунків'!AY128:BG128>0,'Для розрахунків'!AY128:BG128,\"-\")","v":"-"},null,null,null,null,null,null,null,null,{"$f":"IF('Для розрахунків'!BH128:BP128>0,'Для розрахунків'!BH128:BP128,\"-\")","v":"-"}]
["Доходи майбутніх періодів",null,null,null,null,null,null,null,null,null,null,null,null,null,null,null,null,null,null,null,null,null,null,null,null,null,null,null,null,null,null,null,null,null,null,null,null,null,null,null,null,null,null,null,null,null,1665,null,null,null,{"$f":"IF('Для розрахунків'!AY129:BG129>0,'Для розрахунків'!AY129:BG129,\"-\")","v":"-"},null,null,null,null,null,null,null,null,{"$f":"IF('Для розрахунків'!BH129:BP129>0,'Для розрахунків'!BH129:BP129,\"-\")","v":"-"}]
["Відстрочені комісійні доходи від перестраховиків",null,null,null,null,null,null,null,null,null,null,null,null,null,null,null,null,null,null,null,null,null,null,null,null,null,null,null,null,null,null,null,null,null,null,null,null,null,null,null,null,null,null,null,null,null,"1670",null,null,null,{"$f":"IF('Для розрахунків'!AY130:BG130>0,'Для розрахунків'!AY130:BG130,\"-\")","v":"-"},null,null,null,null,null,null,null,null,{"$f":"IF('Для розрахунків'!BH130:BP130>0,'Для розрахунків'!BH130:BP130,\"-\")","v":"-"}]
["Інші поточні зобов'язання",null,null,null,null,null,null,null,null,null,null,null,null,null,null,null,null,null,null,null,null,null,null,null,null,null,null,null,null,null,null,null,null,null,null,null,null,null,null,null,null,null,null,null,null,null,1690,null,null,null,{"$f":"IF('Для розрахунків'!AY131:BG131>0,'Для розрахунків'!AY131:BG131,\"-\")","v":"-"},null,null,null,null,null,null,null,null,{"$f":"IF('Для розрахунків'!BH131:BP131>0,'Для розрахунків'!BH131:BP131,\"-\")","v":"-"}]
["Усього за розділом IІІ",null,null,null,null,null,null,null,null,null,null,null,null,null,null,null,null,null,null,null,null,null,null,null,null,null,null,null,null,null,null,null,null,null,null,null,null,null,null,null,null,null,null,null,null,null,1695,null,null,null,{"$f":"IF('Для розрахунків'!AY132:BG132>0,'Для розрахунків'!AY132:BG132,\"-\")","v":26},null,null,null,null,null,null,null,null,{"$f":"IF('Для розрахунків'!BH132:BP132>0,'Для розрахунків'!BH132:BP132,\"-\")","v":32}]
["ІV. Зобов'язання, пов'язані з необоротними активами,",null,null,null,null,null,null,null,null,null,null,null,null,null,null,null,null,null,null,null,null,null,null,null,null,null,null,null,null,null,null,null,null,null,null,null,null,null,null,null,null,null,null,null,null,null,1700,null,null,null,{"$f":"IF('Для розрахунків'!AY133:BG133>0,'Для розрахунків'!AY133:BG133,\"-\")","v":"-"},null,null,null,null,null,null,null,null,{"$f":"IF('Для розрахунків'!BH133:BP133>0,'Для розрахунків'!BH133:BP133,\"-\")","v":"-"}]
["утримуваними для продажу, та групами вибуття",null,null,null,null,null,null,null,null,null,null,null,null,null,null,null,null,null,null,null,null,null,null,null,null,null,null,null,null,null,null,null,null,null,null,null,null,null,null,null,null,null,null,null,null,null,null,null,null,null,{"$f":"IF('Для розрахунків'!AY134:BG134>0,'Для розрахунків'!AY134:BG134,\"-\")","v":"-"},null,null,null,null,null,null,null,null,{"$f":"IF('Для розрахунків'!BH134:BP134>0,'Для розрахунків'!BH134:BP134,\"-\")","v":"-"}]
["V. Чиста вартість активів недержавного пенсійного фонду",null,null,null,null,null,null,null,null,null,null,null,null,null,null,null,null,null,null,null,null,null,null,null,null,null,null,null,null,null,null,null,null,null,null,null,null,null,null,null,null,null,null,null,null,null,"1800",null,null,null,{"$f":"IF('Для розрахунків'!AY135:BG135>0,'Для розрахунків'!AY135:BG135,\"-\")","v":"-"},null,null,null,null,null,null,null,null,{"$f":"IF('Для розрахунків'!BH135:BP135>0,'Для розрахунків'!BH135:BP135,\"-\")","v":"-"}]
["Баланс",null,null,null,null,null,null,null,null,null,null,null,null,null,null,null,null,null,null,null,null,null,null,null,null,null,null,null,null,null,null,null,null,null,null,null,null,null,null,null,null,null,null,null,null,null,1900,null,null,null,{"$f":"IF('Для розрахунків'!AY136:BG136>0,'Для розрахунків'!AY136:BG136,\"-\")","v":2018},null,null,null,null,null,null,null,null,{"$f":"IF('Для розрахунків'!BH136:BP136>0,'Для розрахунків'!BH136:BP136,\"-\")","v":2079}]
[]
["Керівник",null,null,null,null,null,null,null,null,null,null,null,null,null,null,null,null,null,null,null,null,null,null,null,null,null,null,null,null,null,null,null,null,"Діасамідзе Д.Ш."]
[]
["Головний бухгалтер",null,null,null,null,null,null,null,null,null,null,null,null,null,null,null,null,null,null,null,null,null,null,null,null,null,null,null,null,null,null,null,null,"Кондратюк Л.Г."]
[]
[null,"Аудитор",null,null,null,null,null,null,null,null,null,null,null,null,null,null,null,null,null,null,null,null,null,null,null,null,null,null,null,null,null,null,null,"Куліченко О.В."]
[]
["____________\n1 Визначається в порядку, встановленому центральним органом\nвиконавчої влади, що реалізує державну політику у сфері статистики."]